Workbook

Sheet MMC
D1: Año | AI1: Código
AI2: 50 | AJ2: =LOOKUP(AI2,AI4:AJ89,AJ4:AJ89) -> 2024
AI3: Nª | AJ3: Año
A4: COTIZACIÓN MENSUAL DEL MODULO MONETARIO CONSUMIDOR (Norma IRAM 34 554) -MMC- | M4: Factor actual de conversión del índice actual: | N4: 0.2687360472 | P4: COTIZACIÓN DIARIA DEL MÓDULO MONETARIO CONSUMIDOR (IRAM 34 554) -MMC- | AA4: AÑO | AB4: =O40 -> 2024 | AI4: 1 | AJ4: 1975
A5: Expresado en la moneda corriente de cada momento y aplicado cada modificación del índice de Precios al Consumidor del INDEC | M5: © Miguel Ángel Martín | P5: Expresado en la moneda corriente de cada momento y aplicado cada modificación del índice de Precios al Consumidor del INDEC | AI5: 2 | AJ5: 1976
A6: AÑO | B6: Moneda | C6: ENERO | D6: FEBRERO | E6: MARZO | F6: ABRIL | G6: MAYO | H6: JUNIO | I6: JULIO | J6: AGOSTO | K6: SETIEMBR | L6: OCTUBRE | M6: NOVIEMBR | N6: DICIEMBRE | P6: =IF(O40<1984,"Pesos Ley 181 188",IF(O40<1986,"Pesos Argentinos",IF(O40<1992,"Australes","Pesos"))) -> Pesos | V6: =IF(O40=1983,"Pesos Argentinos",IF(O40=1985,"Australes","")) ->  | AB6: (C) Miguel Ángel Martín | AI6: 3 | AJ6: 1977
A7: 1,975 | B7: $ ley | C7: 12.5800 | D7: 13.1600 | E7: 14.2200 | F7: 15.6000 | G7: 16.2100 | H7: 19.6400 | I7: 26.4600 | J7: 32.4000 | K7: 35.9100 | L7: 40.8600 | M7: 44.5200 | N7: 53.1700 | P7: DÍA | Q7: ENERO | R7: FEBRERO | S7: MARZO | T7: ABRIL | U7: MAYO | V7: JUNIO | W7: JULIO | X7: AGOSTO | Y7: SETIEMBRE | Z7: OCTUBRE | AA7: NOVIEMBRE | AB7: DICIEMBRE | AI7: 4 | AJ7: 1978
A8: 1,976 | B8: $ ley | C8: 57.9000 | D8: 68.8900 | E8: 94.7800 | F8: 126.9300 | G8: 142.2800 | H8: 146.1600 | I8: 152.3600 | J8: 160.7600 | K8: 177.7300 | L8: 192.7700 | M8: 208.1000 | N8: 237.9600 | P8: 1 | Q8: =Q41*$Q$39 -> 955.2822 | R8: =R41*$Q$39 -> 1,152.1623 | S8: 1,304.7295 | T8: 1,448.3746 | U8: 1,576.2845 | V8: 1,642.1185 | W8: 1,717.2801 | X8: 1,786.4936 | Y8: 1,861.0334 | Z8: 1,925.5966 | AA8: 0.0000 | AB8: 0.0000 | AI8: 5 | AJ8: 1979
A9: 1,977 | B9: $ ley | C9: 257.0700 | D9: 278.2900 | E9: 299.2900 | F9: 317.2800 | G9: 337.8900 | H9: 363.7300 | I9: 390.4700 | J9: 434.7400 | K9: 470.8100 | L9: 529.6300 | M9: 577.5000 | N9: 619.7200 | P9: 2 | Q9: =Q8*Q$39 -> 961.0741 | R9: =IF(R$40=0,"",R8*R$39) -> 1,157.1135 | S9: =IF(S$40=0,"",S8*S$39) -> 1,309.1328 | T9: =IF(T$40=0,"",T8*T$39) -> 1,452.4662 | U9: =IF(U$40=0,"",U8*U$39) -> 1,578.3664 | V9: =IF(V$40=0,"",V8*V$39) -> 1,644.5700 | W9: =IF(W$40=0,"",W8*W$39) -> 1,719.4703 | X9: =IF(X$40=0,"",X8*X$39) -> 1,788.8509 | Y9: =IF(Y$40=0,"",Y8*Y$39) -> 1,863.1502 | Z9: =IF(Z$40=0,"",Z8*Z$39) ->  | AA9: =IF(AA$40=0,"",AA8*AA$39) ->  | AB9: =IF(AB$40=0,"",AB8*AB$39) ->  | AI9: 6 | AJ9: 1980
A10: 1,978 | B10: $ ley | C10: 702.490 | D10: 746.080 | E10: 816.910 | F10: 907.370 | G10: 986.230 | H10: 1,050.250 | I10: 1,119.550 | J10: 1,206.960 | K10: 1,284.170 | L10: 1,409.390 | M10: 1,533.330 | N10: 1,672.280 | P10: 3 | Q10: =Q9*Q$39 -> 966.9012 | R10: 1,162.0860 | S10: 1,313.5510 | T10: 1,456.5693 | U10: 1,580.4510 | V10: 1,647.0253 | W10: 1,721.6634 | X10: 1,791.2112 | Y10: 1,865.2694 | AI10: 7 | AJ10: 1981
A11: 1,979 | B11: $ ley | C11: 1,885.850 | D11: 2,026.210 | E11: 2,183.240 | F11: 2,336.100 | G11: 2,497.770 | H11: 2,739.940 | I11: 2,935.890 | J11: 3,272.050 | K11: 3,496.040 | L11: 3,647.800 | M11: 3,835.270 | N11: 4,009.050 | P11: 4 | Q11: 972.7637 | R11: 1,167.0798 | S11: 1,317.9842 | T11: 1,460.6840 | U11: 1,582.5384 | V11: 1,649.4842 | W11: 1,723.8593 | X11: 1,793.5747 | Y11: 1,867.3911 | AI11: 8 | AJ11: 1982
A12: 1,980 | B12: $ ley | C12: 4,298.040 | D12: 4,527.980 | E12: 4,790.350 | F12: 5,086.180 | G12: 5,380.300 | H12: 5,689.110 | I12: 5,949.320 | J12: 6,152.860 | K12: 6,432.410 | L12: 6,922.220 | M12: 7,246.010 | N12: 7,522.320 | P12: 5 | Q12: 978.6616 | R12: 1,172.0951 | S12: 1,322.4322 | T12: 1,464.8103 | U12: 1,584.6286 | V12: 1,651.9467 | W12: 1,726.0579 | X12: 1,795.9413 | Y12: 1,869.5151 | AI12: 9 | AJ12: 1983
A13: 1,981 | B13: $ ley | C13: 7,890.960 | D13: 8,220.610 | E13: 8,713.260 | F13: 9,399.890 | G13: 10,108.560 | H13: 11,055.710 | I13: 12,188.770 | J13: 13,154.540 | K13: 14,093.720 | L13: 14,914.260 | M13: 15,989.840 | N13: 17,397.210 | P13: 6 | Q13: 984.5954 | R13: 1,177.1320 | S13: 1,326.8953 | T13: 1,468.9483 | U13: 1,586.7215 | V13: 1,654.4130 | W13: 1,728.2594 | X13: 1,798.3110 | Y13: 1,871.6416 | AI13: 10 | AJ13: 1984
A14: 1,982 | B14: $ ley | C14: 19,471.970 | D14: 20,499.980 | E14: 21,468.150 | F14: 22,367.030 | G14: 23,051.590 | H14: 24,871.390 | I14: 28,915.130 | J14: 33,156.080 | K14: 38,822.380 | L14: 43,747.640 | M14: 48,711.290 | N14: 53,885.220 | P14: 7 | Q14: 990.5651 | R14: 1,182.1905 | S14: 1,331.3735 | T14: 1,473.0980 | U14: 1,588.8172 | V14: 1,656.8829 | W14: 1,730.4637 | X14: 1,800.6839 | Y14: 1,873.7705 | AI14: 11 | AJ14: 1985
A15: 1,983 | B15: $ ley/$ arg | C15: 62,500.10 | D15: 70,637.61 | E15: 78,595.87 | F15: 86,666.84 | G15: 94,523.18 | H15: 109,480.23 | I15: 12.3114 | J15: 14.4344 | K15: 17.5187 | L15: 20.4921 | M15: 24.4337 | N15: 28.7587 | P15: 8 | Q15: 996.5710 | R15: 1,187.2708 | S15: 1,335.8668 | T15: 1,477.2594 | U15: 1,590.9157 | V15: 1,659.3565 | W15: 1,732.6707 | X15: 1,803.0598 | Y15: 1,875.9018 | AI15: 12 | AJ15: 1986
A16: 1,984 | B16: $ arg | C16: 32.3568 | D16: 37.8550 | E16: 45.5236 | F16: 53.9443 | G16: 63.1576 | H16: 74.4702 | I16: 88.0853 | J16: 108.2101 | K16: 138.0192 | L16: 164.6883 | M16: 189.3487 | N16: 226.6091 | P16: 9 | Q16: 1,002.6133 | R16: 1,192.3728 | S16: 1,340.3752 | T16: 1,481.4326 | U16: 1,593.0169 | V16: 1,661.8338 | W16: 1,734.8806 | X16: 1,805.4389 | Y16: 1,878.0355 | AI16: 13 | AJ16: 1987
A17: 1,985 | B17: $ arg/Austral | C17: 283.5550 | D17: 342.1605 | E17: 432.8296 | F17: 560.3652 | G17: 701.1067 | H17: 915.1908 | I17: 0.9719 | J17: 1.0017 | K17: 1.0216 | L17: 1.0415 | M17: 1.0662 | N17: 1.1000 | P17: 10 | Q17: 1,008.6923 | R17: 1,197.4969 | S17: 1,344.8989 | T17: 1,485.6175 | U17: 1,595.1209 | V17: 1,664.3148 | W17: 1,737.0934 | X17: 1,807.8212 | Y17: 1,880.1717 | AI17: 14 | AJ17: 1988
A18: 1,986 | B18: Austral | C18: 1.1333 | D18: 1.1525 | E18: 1.2060 | F18: 1.2631 | G18: 1.3140 | H18: 1.3737 | I18: 1.4666 | J18: 1.5954 | K18: 1.7108 | L18: 1.8143 | M18: 1.9104 | N18: 2.0010 | P18: 11 | Q18: 1,014.8081 | R18: 1,202.6429 | S18: 1,349.4378 | T18: 1,489.8143 | U18: 1,597.2277 | V18: 1,666.7995 | W18: 1,739.3089 | X18: 1,810.2066 | Y18: 1,882.3103 | AI18: 15 | AJ18: 1989
A19: 1,987 | B19: Austral | C19: 2.1522 | D19: 2.2922 | E19: 2.4801 | F19: 2.5636 | G19: 2.6706 | H19: 2.8843 | I19: 3.1762 | J19: 3.6118 | K19: 4.0339 | L19: 4.8224 | M19: 5.3176 | N19: 5.4985 | P19: 12 | Q19: 1,020.9610 | R19: 1,207.8110 | S19: 1,353.9920 | T19: 1,494.0229 | U19: 1,599.3372 | V19: 1,669.2879 | W19: 1,741.5273 | X19: 1,812.5951 | Y19: 1,884.4513 | AI19: 16 | AJ19: 1990
A20: 1,988 | B20: Austral | C20: 5.9985 | D20: 6.6243 | E20: 7.6006 | F20: 8.9104 | G20: 10.3112 | H20: 12.1636 | I20: 15.2825 | J20: 19.5043 | K20: 21.7848 | L20: 23.7440 | M20: 25.1008 | N20: 26.8175 | P20: 13 | Q20: 1,027.1512 | R20: 1,213.0014 | S20: 1,358.5616 | T20: 1,498.2434 | U20: 1,601.4496 | V20: 1,671.7801 | W20: 1,743.7485 | X20: 1,814.9868 | Y20: 1,886.5947 | AI20: 17 | AJ20: 1991
A21: 1,989 | B21: Austral | C21: 29.210 | D21: 32.012 | E21: 37.455 | F21: 49.955 | G21: 89.154 | H21: 191.215 | I21: 567.200 | J21: 781.965 | K21: 855.110 | L21: 902.954 | M21: 961.828 | N21: 1,347.261 | P21: 14 | Q21: 1,033.3789 | R21: 1,218.2140 | S21: 1,363.1467 | T21: 1,502.4759 | U21: 1,603.5647 | V21: 1,674.2759 | W21: 1,745.9725 | X21: 1,817.3817 | Y21: 1,888.7406 | AI21: 18 | AJ21: 1992
A22: 1,990 | B22: Austral | C22: 2,414.344 | D22: 3,900.865 | E22: 7,627.193 | F22: 8,494.604 | G22: 9,650.501 | H22: 10,991.715 | I22: 12,181.618 | J22: 14,049.993 | K22: 16,252.659 | L22: 17,502.560 | M22: 18,584.325 | N22: 19,453.377 | P22: 15 | Q22: 1,039.6444 | R22: 1,223.4491 | S22: 1,367.7472 | T22: 1,506.7203 | U22: 1,605.6826 | V22: 1,676.7755 | W22: 1,748.1994 | X22: 1,819.7797 | Y22: 1,890.8890 | AI22: 19 | AJ22: 1993
A23: 1,991 | B23: Austral | C23: 20,951.032 | D23: 26,605.792 | E23: 29,543.690 | F23: 31,171.705 | G23: 32,045.917 | H23: 33,046.956 | I23: 33,903.204 | J23: 34,344.243 | K23: 34,950.919 | L23: 35,423.036 | M23: 35,560.803 | N23: 35,791.672 | P23: 16 | Q23: 1,045.9479 | R23: 1,228.7066 | S23: 1,372.3632 | T23: 1,510.9767 | U23: 1,607.8034 | V23: 1,679.2788 | W23: 1,750.4291 | X23: 1,822.1809 | Y23: 1,893.0398 | AI23: 20 | AJ23: 1994
A24: 1,992 | B24: Pesos | C24: 3.6881 | D24: 3.7675 | E24: 3.8466 | F24: 3.8961 | G24: 3.9223 | H24: 3.9531 | I24: 4.0214 | J24: 4.0816 | K24: 4.1238 | L24: 4.1760 | M24: 4.1953 | N24: 4.2072 | P24: 17 | Q24: 1,052.2896 | R24: 1,233.9868 | S24: 1,376.9948 | T24: 1,515.2451 | U24: 1,609.9269 | V24: 1,681.7859 | W24: 1,752.6616 | X24: 1,824.5852 | Y24: 1,895.1930 | AI24: 21 | AJ24: 1995
A25: 1,993 | B25: Pesos | C25: 4.2422 | D25: 4.2732 | E25: 4.3053 | F25: 4.3503 | G25: 4.4063 | H25: 4.4380 | I25: 4.4522 | J25: 4.4530 | K25: =303661.1/10000*0.1478507787 -> 4.4897 | L25: 4.5150 | M25: 4.5176 | N25: 4.5170 | P25: 18 | Q25: 1,058.6697 | R25: 1,239.2896 | S25: 1,381.6421 | T25: 1,519.5255 | U25: 1,612.0532 | V25: 1,684.2966 | W25: 1,754.8970 | X25: 1,826.9927 | Y25: 1,897.3487 | AI25: 22 | AJ25: 1996
A26: 1,994 | B26: Pesos | C26: 4.5216 | D26: 4.5214 | E26: 4.5277 | F26: 4.5387 | G26: 4.5545 | H26: 4.5721 | I26: 4.6143 | J26: 4.6238 | K26: 4.6555 | L26: 4.6704 | M26: 4.6809 | N26: 4.6911 | P26: 19 | Q26: 1,065.0886 | R26: 1,244.6153 | S26: 1,386.3050 | T26: 1,523.8181 | U26: 1,614.1824 | V26: 1,686.8112 | W26: 1,757.1353 | X26: 1,829.4034 | Y26: 1,899.5068 | AI26: 23 | AJ26: 1997
A27: 1,995 | B27: Pesos | C27: 4.7496 | D27: 4.7495 | E27: 4.7281 | F27: 4.7497 | G27: 4.7507 | H27: 4.7409 | I27: 4.7602 | J27: 4.7486 | K27: 4.7564 | L27: 4.7726 | M27: 4.7617 | N27: 4.7665 | P27: 20 | Q27: 1,071.5463 | R27: 1,249.9638 | S27: 1,390.9837 | T27: 1,528.1228 | U27: 1,616.3143 | V27: 1,689.3295 | W27: 1,759.3764 | X27: 1,831.8173 | Y27: 1,901.6674 | AI27: 24 | AJ27: 1998
A28: 1,996 | B28: Pesos | C28: 4.7808 | D28: 4.7653 | E28: 4.7396 | F28: 4.7397 | G28: 4.7354 | H28: 4.7356 | I28: 4.7612 | J28: 4.7575 | K28: 4.7662 | L28: 4.7902 | M28: 4.7828 | N28: 4.7691 | P28: 21 | Q28: 1,078.0432 | R28: 1,255.3353 | S28: 1,395.6781 | T28: 1,532.4396 | U28: 1,618.4491 | V28: 1,691.8515 | W28: 1,761.6203 | X28: 1,834.2343 | Y28: 1,903.8304 | AI28: 25 | AJ28: 1999
A29: 1,997 | B29: Pesos | C29: 4.7914 | D29: 4.8098 | E29: 4.7861 | F29: 4.7703 | G29: 4.7663 | H29: 4.7772 | I29: 4.7878 | J29: 4.7957 | K29: 4.7934 | L29: 4.7859 | M29: 4.7766 | N29: 4.7848 | P29: 22 | Q29: 1,084.5795 | R29: 1,260.7298 | S29: 1,400.3884 | T29: 1,536.7687 | U29: 1,620.5867 | V29: 1,694.3773 | W29: 1,763.8672 | X29: 1,836.6546 | Y29: 1,905.9959 | AI29: 26 | AJ29: 2000
A30: 1,998 | B30: Pesos | C30: 4.8149 | D30: 4.8316 | E30: 4.8256 | F30: 4.8261 | G30: 4.8226 | H30: 4.8318 | I30: 4.8469 | J30: 4.8479 | K30: 4.8464 | L30: 4.8287 | M30: 4.8172 | N30: 4.8166 | P30: 23 | Q30: 1,091.1554 | R30: 1,266.1476 | S30: 1,405.1146 | T30: 1,541.1099 | U30: 1,622.7271 | V30: 1,696.9069 | W30: 1,766.1168 | X30: 1,839.0780 | Y30: 1,908.1639 | AI30: 27 | AJ30: 2001
A31: 1,999 | B31: Pesos | C31: 4.8393 | D31: 4.8315 | E31: 4.7952 | F31: 4.7905 | G31: 4.7669 | H31: 4.7667 | I31: 4.7755 | J31: 4.7575 | K31: 4.7481 | L31: 4.7473 | M31: 4.7323 | N31: 4.7294 | P31: 24 | Q31: 1,097.7712 | R31: 1,271.5887 | S31: 1,409.8567 | T31: 1,545.4635 | U31: 1,624.8703 | V31: 1,699.4403 | W31: 1,768.3694 | X31: 1,841.5046 | Y31: 1,910.3343 | AI31: 28 | AJ31: 2002
A32: 2,000 | B32: Pesos | C32: 4.7693 | D32: 4.7695 | E32: 4.7443 | F32: 4.7390 | G32: 4.7203 | H32: 4.7119 | I32: 4.7323 | J32: 4.6982 | K32: 4.6910 | L32: 4.6996 | M32: 4.6982 | N32: 4.6947 | P32: 25 | Q32: 1,104.4271 | R32: 1,277.0531 | S32: 1,414.6149 | T32: 1,549.8293 | U32: 1,627.0164 | V32: 1,701.9774 | W32: 1,770.6248 | X32: 1,843.9345 | Y32: 1,912.5072 | AI32: 29 | AJ32: 2003
A33: 2,001 | B33: Pesos | C33: 4.6756 | D33: 4.6982 | E33: 4.6968 | F33: 4.7261 | G33: 4.7280 | H33: 4.6972 | I33: 4.6968 | J33: 4.6816 | K33: 4.6612 | L33: 4.6612 | M33: 4.6982 | N33: 4.6455 | P33: 26 | Q33: 1,111.1234 | R33: 1,282.5410 | S33: 1,419.3891 | T33: 1,554.2075 | U33: 1,629.1653 | V33: 1,704.5184 | W33: 1,772.8831 | X33: 1,846.3675 | Y33: 1,914.6826 | AI33: 30 | AJ33: 2004
A34: 2,002 | B34: Pesos | C34: 4.7280 | D34: 4.8765 | E34: 5.0911 | F34: 5.5964 | G34: 5.8209 | H34: 6.0316 | I34: 6.2239 | J34: 6.3697 | K34: 6.4555 | L34: 6.4697 | M34: 6.5020 | N34: 6.5151 | P34: 27 | Q34: 1,117.8603 | R34: 1,288.0525 | S34: 1,424.1794 | T34: 1,558.5980 | U34: 1,631.3171 | V34: 1,707.0631 | W34: 1,775.1443 | X34: 1,848.8038 | Y34: 1,916.8604 | AI34: 31 | AJ34: 2005
A35: 2,003 | B35: Pesos | C35: 6.6009 | D35: 6.6383 | E35: 6.6771 | F35: 6.6809 | G35: 6.6548 | H35: 6.6492 | I35: 6.6790 | J35: 6.6804 | K35: 6.6833 | L35: 6.7226 | M35: 6.7391 | N35: 6.7534 | P35: 28 | Q35: 1,124.6380 | R35: 1,293.5876 | S35: 1,428.9859 | T35: 1,563.0009 | U35: 1,633.4716 | V35: 1,709.6116 | W35: 1,777.4084 | X35: 1,851.2432 | Y35: 1,919.0408 | AI35: 32 | AJ35: 2006
A36: 2,004 | B36: Pesos | C36: 6.7818 | D36: 6.7884 | E36: 6.8291 | F36: 6.8874 | G36: 6.9381 | H36: 6.9769 | I36: 7.0091 | J36: 7.0332 | K36: 7.0778 | L36: 7.1057 | M36: 7.1057 | N36: 7.1654 | P36: 29 | Q36: 1,131.4568 | R36: =IF(O41=0,R35*R$39,"") -> 1,299.1466 | S36: =IF(S$40=0,"",S35*S$39) -> 1,433.8086 | T36: 1,567.4163 | U36: 1,635.6291 | V36: 1,712.1640 | W36: 1,779.6754 | X36: 1,853.6859 | Y36: 1,921.2236 | AI36: 33 | AJ36: 2007
A37: 2,005 | B37: Pesos | C37: 7.2715 | D37: 7.3406 | E37: 7.4538 | F37: 7.5376 | G37: 7.5352 | H37: 7.5352 | I37: 7.6806 | J37: 7.7143 | K37: 7.8042 | L37: 7.8649 | M37: 7.9601 | N37: 8.0486 | P37: 30 | Q37: 1,138.3169 | S37: 1,438.6476 | T37: 1,571.8441 | U37: 1,637.7894 | V37: 1,714.7201 | W37: 1,781.9452 | X37: 1,856.1318 | Y37: 1,923.4088 | AI37: 34 | AJ37: 2008
A38: 2,006 | B38: Pesos | C38: 8.1514 | D38: 8.1836 | E38: 8.2821 | F38: 8.3626 | G38: 8.4019 | H38: 8.4426 | I38: 8.4947 | J38: 8.5426 | K38: 8.6193 | L38: 8.6932 | M38: 8.7547 | N38: 8.8404 | P38: 31 | Q38: 1,145.2187 | S38: =IF(S$40=0,"",S37*S$39) -> 1,443.5029 | U38: =IF(U$40=0,"",U37*U$39) -> 1,639.9525 | W38: =IF(W$40=0,"",W37*W$39) -> 1,784.2180 | X38: =IF(X$40=0,"",X37*X$39) -> 1,858.5810 | Z38: =IF(Z$40=0,"",Z37*Z$39) ->  | AB38: =IF(AB$40=0,"",AB37*AB$39) ->  | AI38: 35 | AJ38: 2009
A39: 2,007 | B39: Pesos | C39: 8.9418 | D39: 8.9688 | E39: 9.0375 | F39: 9.1047 | G39: 9.1431 | H39: 9.1829 | I39: 9.2288 | J39: 9.2828 | K39: 9.3571 | L39: 9.4211 | M39: 9.5016 | N39: 9.5897 | Q39: =(Q40/Q41)^(1/31) -> 1.0061 | R39: =(R40/R41)^(1/IF(O41=0,29,28)) -> 1.0043 | S39: =(S40/S41)^(1/31) -> 1.0034 | T39: =(T40/T41)^(1/30) -> 1.0028 | U39: =(U40/U41)^(1/31) -> 1.0013 | V39: =(V40/V41)^(1/30) -> 1.0015 | W39: =(W40/W41)^(1/31) -> 1.0013 | X39: 1.0013 | Y39: =(Y40/Y41)^(1/30) -> 1.0011 | Z39: =(Z40/Z41)^(1/31) -> 0.0000 | AA39: =(AA40/AA41)^(1/30) ->  | AB39: =(AB40/AB41)^(1/31) ->  | AI39: 36 | AJ39: 2010
A40: 2,008 | B40: Pesos | C40: 9.6787 | D40: 9.7242 | E40: 9.8340 | F40: 9.9155 | G40: 9.9710 | H40: 10.0345 | I40: 10.0712 | J40: 10.1188 | K40: 10.1832 | L40: 10.2139 | M40: 10.2487 | N40: 10.2834 | O40: =AJ2 -> 2,024 | Q40: =LOOKUP($AJ$2,$A$7:$A$92,C7:C92) -> 1,145.2187 | R40: =LOOKUP($AJ$2,$A$7:$A$92,D7:D92) -> 1,296.8664 | S40: 1,439.6459 | T40: 1,566.7849 | U40: 1,632.2221 | V40: 1,706.9308 | W40: 1,775.7272 | X40: 1,849.8177 | Y40: 1,913.9919 | Z40: 0.0000 | AA40: 0.0000 | AB40: 0.0000 | AI40: 37 | AJ40: 2011
A41: 2,009 | B41: Pesos | C41: 10.3379 | D41: 10.3825 | E41: 10.4489 | F41: 10.4837 | G41: 10.5184 | H41: 10.5630 | I41: 10.6284 | J41: 10.7167 | K41: 10.7960 | L41: 10.8823 | M41: 10.9725 | N41: 11.0746 | O41: =MOD(O40,4) -> 0 | Q41: =IF(O40=1975,12.22,LOOKUP($AJ$2-1,$A$7:$A$92,$N$7:$N$923)) -> 949.5251 | R41: =Q38 -> 1,145.2187 | S41: =R40 -> 1,296.8664 | T41: =S40 -> 1,439.6459 | U41: 1,566.7849 | V41: 1,632.2221 | W41: 1,706.9308 | X41: 1,775.7272 | Y41: 1,849.8177 | Z41: 1,913.9919 | AA41: 0.0000 | AB41: 0.0000 | AI41: 38 | AJ41: 2012
A42: 2,010 | B42: Pesos | C42: 11.1896 | D42: 11.3285 | E42: 11.4583 | F42: 11.5535 | G42: 11.6398 | H42: 11.7251 | I42: 11.8193 | J42: 11.9065 | K42: 11.9928 | L42: 12.1822 | M42: 12.1822 | N42: 12.2843 | AI42: 39 | AJ42: 2013
A43: 2,011 | B43: Pesos | C43: 12.3735 | D43: 12.4648 | E43: 12.5699 | F43: 12.6750 | G43: 12.7682 | H43: 12.8594 | I43: 12.9615 | J43: 13.0696 | K43: 13.1787 | L43: 13.2620 | M43: 13.3403 | N43: 13.4523 | AI43: 40 | AJ43: 2014
A44: 2,012 | B44: Pesos | C44: 13.5753 | D44: 13.6754 | E44: 13.8034 | F44: 13.9184 | G44: 14.0314 | H44: 14.1326 | I44: 14.2446 | J44: 14.3715 | K44: 14.4984 | L44: 14.6204 | M44: 14.7572 | N44: 14.9109 | AI44: 41 | AJ44: 2015
A45: 2,013 | B45: Pesos | C45: 15.0805 | D45: 15.1548 | E45: 15.2649 | F45: 15.3760 | G45: 15.4820 | H45: 15.6110 | I45: 15.7557 | J45: 15.8876 | K45: 16.0195 | L45: 16.1623 | M45: 16.3120 | N45: 16.5430 | AI45: 42 | AJ45: 2016
A46: 2,014 | B46: Pesos | C46: 17.1466 | D46: 17.7325 | E46: 18.1928 | F46: 18.5179 | G46: 18.7835 | H46: 19.0266 | I46: 19.2986 | J46: 19.5561 | K46: 19.8249 | L46: 20.0628 | M46: 20.3035 | N46: 20.5066 | AI46: 43 | AJ46: 2017
A47: 2,015 | B47: Pesos | C47: 20.7116 | D47: 18.6274 | E47: 18.8736 | F47: 19.0893 | G47: 19.2857 | H47: 19.5086 | I47: 19.7315 | J47: 19.9633 | K47: 20.1983 | L47: 20.4220 | M47: 20.8210 | N47: 21.6366 | AI47: 44 | AJ47: 2018
A48: 2,016 | B48: Pesos | C48: 22.5318 | D48: 22.8591 | E48: 23.2390 | F48: 23.7893 | G48: 24.7885 | H48: 25.5498 | I48: 26.0731 | J48: 26.1207 | K48: 26.4300 | L48: 27.0485 | M48: 27.4767 | N48: 27.8097 | AI48: 45 | AJ48: 2019
A49: 2,017 | B49: Pesos | C49: 28.5884 | D49: 28.6440 | E49: 29.4227 | F49: 30.2292 | G49: 30.6742 | H49: 30.9801 | I49: 31.5919 | J49: 32.0090 | K49: 32.6208 | L49: 33.1770 | M49: 33.7054 | N49: 34.7622 | AI49: 46 | AJ49: 2020
A50: 2,018 | B50: Pesos | C50: 35.4018 | D50: 36.2361 | E50: 36.9313 | F50: 37.9285 | G50: 38.7415 | H50: 40.2685 | I50: 41.5433 | J50: 43.1635 | K50: 45.9691 | L50: 48.4515 | M50: 50.0019 | N50: 51.2534 | AI50: 47 | AJ50: 2021
A51: 2,019 | B51: Pesos | C51: 52.7273 | D51: 54.7296 | E51: 57.2881 | F51: 59.2904 | G51: 61.0702 | H51: 62.4607 | I51: 63.7956 | J51: 66.6322 | K51: 70.1084 | L51: 72.3610 | M51: 75.3088 | N51: 78.8128 | AI51: 48 | AJ51: 2022
A52: 2,020 | B52: Pesos | C52: 79.6749 | D52: 82.2334 | E52: 84.0411 | F52: 85.2091 | G52: 83.3443 | H52: 85.1779 | I52: 86.7962 | J52: 89.1397 | K52: 93.1439 | L52: 97.5512 | M52: 97.6587 | N52: 101.3404 | AI52: 49 | AJ52: 2023
A53: 2,021 | B53: Pesos | C53: 104.6458 | D53: 108.3409 | E53: 114.0785 | F53: 121.9255 | G53: 122.7586 | H53: 126.5209 | I53: 133.8574 | J53: 133.8037 | K53: 138.9365 | L53: 144.1769 | M53: 147.4555 | N53: 153.4483 | AI53: 50 | AJ53: 2024
A54: 2,022 | B54: Pesos | C54: 159.4680 | D54: 170.2174 | E54: 181.6924 | F54: 192.6569 | G54: 202.1164 | H54: 208.7273 | I54: 224.0990 | J54: 239.7859 | K54: 259.9484 | L54: 270.7784 | M54: 284.3227 | N54: 299.5063 | AI54: 51 | AJ54: 2025
A55: 2,023 | B55: Pesos | C55: 317.3773 | D55: 338.6074 | E55: 371.1782 | F55: 399.6642 | G55: 433.6325 | H55: 459.4311 | I55: 488.5890 | J55: 549.3771 | K55: 619.4097 | L55: 670.8458 | M55: 756.7876 | N55: 949.5251 | Q55: =M51/G56*3238 -> 149.3974836 | AI55: 52 | AJ55: 2026
A56: 2,024 | B56: Pesos | C56: 1,145.2187 | D56: 1,296.8664 | E56: 1,439.6459 | F56: 1,566.7849 | G56: 1,632.2221 | H56: 1,706.9308 | I56: 1,775.7272 | J56: 1,849.8177 | K56: 1,913.9919 | AI56: 53 | AJ56: 2027
A57: 2,025 | B57: Pesos | AI57: 54 | AJ57: 2028
A58: 2,026 | B58: Pesos | AI58: 55 | AJ58: 2029
A59: 2,027 | B59: Pesos | AI59: 56 | AJ59: 2030
A60: 2,028 | B60: Pesos | AI60: 57 | AJ60: 2031
A61: 2,029 | B61: Pesos | AI61: 58 | AJ61: 2032
A62: 2,030 | B62: Pesos | AI62: 59 | AJ62: 2033
A63: 2,031 | B63: Pesos | AI63: 60 | AJ63: 2034
A64: 2,032 | B64: Pesos | AI64: 61 | AJ64: 2035
A65: 2,033 | B65: Pesos | AI65: 62 | AJ65: 2036
A66: 2,034 | B66: Pesos | AI66: 63 | AJ66: 2037
A67: 2,035 | B67: Pesos | AI67: 64 | AJ67: 2038
A68: 2,036 | B68: Pesos | AI68: 65 | AJ68: 2039
A69: 2,037 | B69: Pesos | AI69: 66 | AJ69: 2040
A70: 2,038 | B70: Pesos | AI70: 67 | AJ70: 2041
A71: 2,039 | B71: Pesos | AI71: 68 | AJ71: 2042
A72: 2,040 | B72: Pesos | AI72: 69 | AJ72: 2043
A73: 2,041 | B73: Pesos | AI73: 70 | AJ73: 2044
A74: 2,042 | B74: Pesos | AI74: 71 | AJ74: 2045
A75: 2,043 | B75: Pesos | AI75: 72 | AJ75: 2046
A76: 2,044 | B76: Pesos | AI76: 73 | AJ76: 2047
A77: 2,045 | B77: Pesos | AI77: 74 | AJ77: 2048
A78: 2,046 | B78: Pesos | AI78: 75 | AJ78: 2049
A79: 2,047 | B79: Pesos | AI79: 76 | AJ79: 2050
A80: 2,048 | B80: Pesos | AI80: 77 | AJ80: 2051
A81: 2,049 | B81: Pesos | AI81: 78 | AJ81: 2052
A82: 2,050 | B82: Pesos | AI82: 79 | AJ82: 2053
A83: 2,051 | B83: Pesos | AI83: 80 | AJ83: 2054
A84: 2,052 | B84: Pesos | AI84: 81 | AJ84: 2055
A85: 2,053 | B85: Pesos | AI85: 82 | AJ85: 2056
A86: 2,054 | B86: Pesos | AI86: 83 | AJ86: 2057
A87: 2,055 | B87: Pesos | AI87: 84 | AJ87: 2058
A88: 2,056 | B88: Pesos | AI88: 85 | AJ88: 2059
A89: 2,057 | B89: Pesos | AI89: 86 | AJ89: 2060
A90: 2,058 | B90: Pesos
A91: 2,059 | B91: Pesos
A92: 2,060 | B92: Pesos

Sheet MM
D1: Año | AI1: Código
AI2: 50 | AJ2: =LOOKUP(AI2,AI4:AJ89,AJ4:AJ89) -> 2024
AI3: Nª | AJ3: Año
A4: COTIZACIÓN MENSUAL DEL MODULO MONETARIO (Norma IRAM 34 516) -MM- | M4: Factor actual de conversión del índice actual: | N4: =326175/167.2/10000 -> 0.1950807416 | P4: COTIZACIÓN DIARIA DEL MÓDULO MONETARIO (IRAM 34 516) -MM- | AA4: AÑO | AB4: =O40 -> 2024 | AI4: 1 | AJ4: 1975
A5: Expresado en la moneda corriente de cada momento y aplicado cada modificación del índice de Precios Mayoriostas del INDEC | M5: © Miguel Ángel Martín | P5: Expresado en la moneda corriente de cada momento y aplicado cada modificación del índice de Precios Mayoriostas del INDEC | AI5: 2 | AJ5: 1976
A6: AÑO | B6: Moneda | C6: ENERO | D6: FEBRERO | E6: MARZO | F6: ABRIL | G6: MAYO | H6: JUNIO | I6: JULIO | J6: AGOSTO | K6: SETIEMBR | L6: OCTUBRE | M6: NOVIEMBR | N6: DICIEMBRE | P6: =IF(O40<1984,"Pesos Ley 181 188",IF(O40<1986,"Pesos Argentinos",IF(O40<1992,"Australes","Pesos"))) -> Pesos | V6: =IF(O40=1983,"Pesos Argentinos",IF(O40=1985,"Australes","")) ->  | AB6: (C) Miguel Ángel Martín | AI6: 3 | AJ6: 1977
A7: 1,975 | B7: $ ley | C7: 12.8358 | D7: 14.4468 | E7: 15.2990 | F7: 15.8771 | G7: 16.7076 | H7: 23.9852 | I7: 31.6833 | J7: 36.5210 | K7: 41.2802 | L7: 44.9972 | M7: 49.4709 | N7: 54.1127 | P7: DÍA | Q7: ENERO | R7: FEBRERO | S7: MARZO | T7: ABRIL | U7: MAYO | V7: JUNIO | W7: JULIO | X7: AGOSTO | Y7: SETIEMBRE | Z7: OCTUBRE | AA7: NOVIEMBRE | AB7: DICIEMBRE | AI7: 4 | AJ7: 1978
A8: 1,976 | B8: $ ley | C8: 64.6671 | D8: 83.1663 | E8: 128.1526 | F8: 161.8621 | G8: 169.5561 | H8: 177.5368 | I8: 188.3669 | J8: 203.5192 | K8: 221.4902 | L8: 231.3061 | M8: 247.1465 | N8: 263.1490 | P8: 1 | Q8: =Q41*$Q$39 -> $ 1,295.0758 | R8: =R41*$Q$39 -> $ 1,527.5791 | S8: $ 1,682.7120 | T8: $ 1,773.9090 | U8: $ 1,835.0993 | V8: $ 1,899.0156 | W8: $ 1,949.4780 | X8: $ 2,009.5699 | Y8: $ 2,051.1675 | Z8: $ 2,080.4878 | AA8: $ 0.0000 | AB8: $ 0.0000 | AI8: 5 | AJ8: 1979
A9: 1,977 | B9: $ ley | C9: 299.4438 | D9: 320.4373 | E9: 332.9687 | F9: 352.0972 | G9: 374.3017 | H9: 399.1419 | I9: 421.9076 | J9: 474.9601 | K9: 509.5472 | L9: 578.4933 | M9: 624.2174 | N9: 650.3650 | P9: 2 | Q9: =Q8*Q$39 -> $ 1,301.9921 | R9: =IF(R$40=0,"",R8*R$39) -> $ 1,532.6825 | S9: =IF(S$40=0,"",S8*S$39) -> $ 1,685.5794 | T9: $ 1,775.9155 | U9: $ 1,837.1271 | V9: $ 1,900.6765 | W9: $ 1,951.3881 | X9: $ 2,010.8985 | Y9: $ 2,052.1382 | AI9: 6 | AJ9: 1980
A10: 1,978 | B10: $ ley | C10: 716.9781 | D10: 754.8658 | E10: 823.3277 | F10: 898.0558 | G10: 978.7278 | H10: 1,025.6351 | I10: 1,076.0441 | J10: 1,088.3646 | K10: 1,247.0217 | L10: 1,370.8973 | M10: 1,487.6243 | N10: 1,582.3577 | P10: 3 | Q10: =Q9*Q$39 -> $ 1,308.9454 | R10: $ 1,537.8029 | S10: $ 1,688.4516 | T10: $ 1,777.9241 | U10: $ 1,839.1572 | V10: $ 1,902.3388 | W10: $ 1,953.3001 | X10: $ 2,012.2280 | Y10: $ 2,053.1093 | AI10: 7 | AJ10: 1981
A11: 1,979 | B11: $ ley | C11: 1,741.1647 | D11: 1,879.7338 | E11: 2,031.2193 | F11: 2,162.2781 | G11: 2,357.1853 | H11: 2,604.3068 | I11: 2,800.1271 | J11: 3,210.4878 | K11: 3,379.1062 | L11: 3,414.7540 | M11: 3,532.3083 | N11: 3,621.3447 | P11: 4 | Q11: $ 1,315.9358 | R11: $ 1,542.9404 | S11: $ 1,691.3287 | T11: $ 1,779.9351 | U11: $ 1,841.1895 | V11: $ 1,904.0025 | W11: $ 1,955.2139 | X11: $ 2,013.5583 | Y11: $ 2,054.0809 | AI11: 8 | AJ11: 1982
A12: 1,980 | B12: $ ley | C12: 3,776.1223 | D12: 3,932.7588 | E12: 4,084.5047 | F12: 4,242.0733 | G12: 4,469.7401 | H12: 4,797.7150 | I12: 4,938.4990 | J12: 5,082.3557 | K12: 5,228.9539 | L12: 5,512.0643 | M12: 5,657.4376 | N12: 5,702.2091 | P12: 5 | Q12: $ 1,322.9636 | R12: $ 1,548.0951 | S12: $ 1,694.2107 | T12: $ 1,781.9483 | U12: $ 1,843.2241 | V12: $ 1,905.6677 | W12: $ 1,957.1296 | X12: $ 2,014.8896 | Y12: $ 2,055.0529 | AI12: 9 | AJ12: 1983
A13: 1,981 | B13: $ ley | C13: 5,842.4298 | D13: 6,143.9866 | E13: 6,440.2133 | F13: 7,236.3794 | G13: 7,815.9362 | H13: 9,276.9469 | I13: 10,466.6057 | J13: 11,442.5231 | K13: 12,258.0399 | L13: 13,010.2369 | M13: 14,441.1353 | N13: 15,977.4117 | P13: 6 | Q13: $ 1,330.0289 | R13: $ 1,553.2671 | S13: $ 1,697.0976 | T13: $ 1,783.9638 | U13: $ 1,845.2609 | V13: $ 1,907.3344 | W13: $ 1,959.0472 | X13: $ 2,016.2217 | Y13: $ 2,056.0254 | AI13: 10 | AJ13: 1984
A14: 1,982 | B14: $ ley | C14: 18,220.2711 | D14: 19,232.9281 | E14: 20,110.5197 | F14: 21,327.9823 | G14: 23,304.0064 | H14: 26,895.1821 | I14: 34,386.8673 | J14: 39,941.4929 | K14: 47,602.2174 | L14: 52,345.5371 | M14: 59,649.4879 | N14: 65,715.7672 | P14: 7 | Q14: $ 1,337.1319 | R14: $ 1,558.4563 | S14: $ 1,699.9895 | T14: $ 1,785.9816 | U14: $ 1,847.3000 | V14: $ 1,909.0025 | W14: $ 1,960.9667 | X14: $ 2,017.5547 | Y14: $ 2,056.9983 | AI14: 11 | AJ14: 1985
A15: 1,983 | B15: $ ley/$ arg | C15: 75,348.1872 | D15: 85,305.4355 | E15: 94,501.5805 | F15: 100,996.0706 | G15: 111,324.8740 | H15: 12.7453 | I15: 14.2109 | J15: 16.7607 | K15: 20.8546 | L15: 24.3829 | M15: 28.3150 | N15: 33.5980 | P15: 8 | Q15: $ 1,344.2729 | R15: $ 1,563.6628 | S15: $ 1,702.8862 | T15: $ 1,788.0017 | U15: $ 1,849.3413 | V15: $ 1,910.6721 | W15: $ 1,962.8881 | X15: $ 2,018.8886 | Y15: $ 2,057.9717 | AI15: 12 | AJ15: 1986
A16: 1,984 | B16: $ arg | C16: 37.4428 | D16: 43.3972 | E16: 51.3633 | F16: 61.4707 | G16: 73.0288 | H16: 85.1628 | I16: 98.3890 | J16: 119.9410 | K16: 149.6110 | L16: 172.5940 | M16: 197.9230 | N16: 243.8930 | P16: 9 | Q16: $ 1,351.4519 | R16: $ 1,568.8867 | S16: $ 1,705.7879 | T16: $ 1,790.0241 | U16: $ 1,851.3849 | V16: $ 1,912.3431 | W16: $ 1,964.8113 | X16: $ 2,020.2233 | Y16: $ 2,058.9456 | AI16: 13 | AJ16: 1987
A17: 1,985 | B17: $ arg/Austral | C17: 294.4160 | D17: 348.1170 | E17: 444.5360 | F17: 584.6080 | G17: 767.0600 | H17: 1.0913 | I17: 1.0811 | J17: 1.0977 | K17: 1.1042 | L17: 1.1124 | M17: 1.1206 | N17: 1.1315 | P17: 10 | Q17: $ 1,358.6694 | R17: $ 1,574.1281 | S17: $ 1,708.6946 | T17: $ 1,792.0487 | U17: $ 1,853.4307 | V17: $ 1,914.0156 | W17: $ 1,966.7365 | X17: $ 2,021.5590 | Y17: $ 2,059.9200 | AI17: 14 | AJ17: 1988
A18: 1,986 | B18: Austral | C18: 1.1312 | D18: 1.1401 | E18: 1.1562 | F18: 1.1906 | G18: 1.2233 | H18: 1.2791 | I18: 1.3443 | J18: 1.4704 | K18: 1.5700 | L18: 1.6526 | M18: 1.7344 | N18: 1.7866 | P18: 11 | Q18: $ 1,365.9253 | R18: $ 1,579.3870 | S18: $ 1,711.6062 | T18: $ 1,794.0757 | U18: $ 1,855.4788 | V18: $ 1,915.6896 | W18: $ 1,968.6635 | X18: $ 2,022.8955 | Y18: $ 2,060.8948 | AI18: 15 | AJ18: 1989
A19: 1,987 | B19: Austral | C19: 1.8816 | D19: 2.0113 | E19: 2.1693 | F19: 2.2111 | G19: 2.3189 | H19: 2.4743 | I19: 2.7072 | J19: 3.1024 | K19: 3.6179 | L19: 4.7198 | M19: 4.9235 | N19: 5.0355 | P19: 12 | Q19: $ 1,373.2201 | R19: $ 1,584.6635 | S19: $ 1,714.5228 | T19: $ 1,796.1049 | U19: $ 1,857.5292 | V19: $ 1,917.3650 | W19: $ 1,970.5924 | X19: $ 2,024.2329 | Y19: $ 2,061.8700 | AI19: 16 | AJ19: 1990
A20: 1,988 | B20: Austral | C20: 1.8816 | D20: 2.0113 | E20: 2.1693 | F20: 2.2111 | G20: 2.3189 | H20: 2.4743 | I20: 2.7072 | J20: 3.1024 | K20: 3.6179 | L20: 4.7198 | M20: 4.9235 | N20: 5.0355 | P20: 13 | Q20: $ 1,380.5537 | R20: $ 1,589.9576 | S20: $ 1,717.4443 | T20: $ 1,798.1364 | U20: $ 1,859.5818 | V20: $ 1,919.0419 | W20: $ 1,972.5232 | X20: $ 2,025.5712 | Y20: $ 2,062.8457 | AI20: 17 | AJ20: 1991
A21: 1,989 | B21: Austral | C21: 28.6102 | D21: 31.0113 | E21: 36.8995 | F21: 58.2977 | G21: 118.7528 | H21: 276.8529 | I21: 857.5932 | J21: 933.1131 | K21: 956.4792 | L21: 971.0658 | M21: 988.1933 | N21: 1,468.5975 | P21: 14 | Q21: $ 1,387.9266 | R21: $ 1,595.2694 | S21: $ 1,720.3708 | T21: $ 1,800.1702 | U21: $ 1,861.6367 | V21: $ 1,920.7202 | W21: $ 1,974.4559 | X21: $ 2,026.9104 | Y21: $ 2,063.8219 | AI21: 18 | AJ21: 1992
A22: 1,990 | B22: Austral | C22: 2,372.5399 | D22: 4,441.3580 | E22: 7,636.5134 | F22: 8,199.6355 | G22: 8,842.5155 | H22: 9,578.4297 | I22: 9,948.5052 | J22: 11,664.7899 | K22: 12,636.6721 | L22: 12,964.7041 | M22: 13,208.0397 | N22: 13,223.9205 | P22: 15 | Q22: $ 1,395.3388 | R22: $ 1,600.5989 | S22: $ 1,723.3023 | T22: $ 1,802.2063 | U22: $ 1,863.6939 | V22: $ 1,922.4001 | W22: $ 1,976.3905 | X22: $ 2,028.2504 | Y22: $ 2,064.7986 | AI22: 19 | AJ22: 1993
A23: 1,991 | B23: Austral | C23: 14,532.2253 | D23: 20,039.9300 | E23: 20,120.5897 | F23: 20,338.6010 | G23: 20,610.6816 | H23: 20,828.5179 | I23: 20,905.6787 | J23: 20,814.6644 | K23: 20,903.5862 | L23: 21,075.9548 | M23: 20,893.8588 | N23: 20,676.2244 | P23: 16 | Q23: $ 1,402.7906 | R23: $ 1,605.9462 | S23: $ 1,726.2388 | T23: $ 1,804.2448 | U23: $ 1,865.7533 | V23: $ 1,924.0814 | W23: $ 1,978.3269 | X23: $ 2,029.5914 | Y23: $ 2,065.7757 | AI23: 20 | AJ23: 1994
A24: 1,992 | B24: Pesos | C24: 2.0768 | D24: 2.0827 | E24: 2.1166 | F24: 2.1207 | G24: 2.1181 | H24: 2.1356 | I24: 2.1553 | J24: 2.1621 | K24: 2.1840 | L24: 2.1864 | M24: 2.1465 | N24: 2.1302 | P24: 17 | Q24: $ 1,410.2822 | R24: $ 1,611.3114 | S24: $ 1,729.1803 | T24: $ 1,806.2855 | U24: $ 1,867.8151 | V24: $ 1,925.7641 | W24: $ 1,980.2653 | X24: $ 2,030.9332 | Y24: $ 2,066.7532 | AI24: 21 | AJ24: 1995
A25: 1,993 | B25: Pesos | C25: 2.1505 | D25: 2.1697 | E25: 2.1581 | F25: 2.1707 | G25: 2.1809 | H25: 2.1782 | I25: 2.1753 | J25: 2.1847 | K25: 2.1856 | L25: 2.1942 | M25: 2.1613 | N25: 2.1356 | P25: 18 | Q25: $ 1,417.8138 | R25: $ 1,616.6945 | S25: =IF(S$40=0,"",S24*S$39) -> $ 1,732.1268 | T25: $ 1,808.3285 | U25: $ 1,869.8791 | V25: $ 1,927.4484 | W25: $ 1,982.2056 | X25: $ 2,032.2759 | Y25: $ 2,067.7313 | AI25: 22 | AJ25: 1996
A26: 1,994 | B26: Pesos | C26: 2.1490 | D26: 2.1306 | E26: 2.1261 | F26: 2.1379 | G26: 2.1501 | H26: 2.2135 | I26: 2.1986 | J26: 2.2043 | K26: 2.2091 | L26: 2.2262 | M26: 2.2460 | N26: 2.2608 | P26: 19 | Q26: $ 1,425.3857 | R26: $ 1,622.0956 | S26: $ 1,735.0783 | T26: $ 1,810.3739 | U26: $ 1,871.9453 | V26: $ 1,929.1341 | W26: $ 1,984.1478 | X26: $ 2,033.6195 | Y26: $ 2,068.7097 | AI26: 23 | AJ26: 1997
A27: 1,995 | B27: Pesos | C27: 2.2931 | D27: 2.2860 | E27: 2.2899 | F27: 2.3505 | G27: 2.3574 | H27: 2.3604 | I27: 2.3636 | J27: 2.3697 | K27: 2.3916 | L27: 2.3948 | M27: 2.3909 | N27: 2.3958 | P27: 20 | Q27: $ 1,432.9979 | R27: $ 1,627.5148 | S27: $ 1,738.0349 | T27: $ 1,812.4216 | U27: $ 1,874.0139 | V27: $ 1,930.8213 | W27: $ 1,986.0919 | X27: $ 2,034.9640 | Y27: $ 2,069.6887 | AI27: 24 | AJ27: 1998
A28: 1,996 | B28: Pesos | C28: 2.4049 | D28: 2.4025 | E28: 2.4212 | F28: 2.4573 | G28: 2.4628 | H28: 2.4446 | I28: 2.4437 | J28: 2.4339 | K28: 2.4617 | L28: 2.4718 | M28: 2.4485 | N28: 2.4452 | P28: 21 | Q28: $ 1,440.6509 | R28: $ 1,632.9520 | S28: $ 1,740.9965 | T28: $ 1,814.4715 | U28: $ 1,876.0847 | V28: $ 1,932.5099 | W28: $ 1,988.0378 | X28: $ 2,036.3094 | Y28: $ 2,070.6681 | AI28: 25 | AJ28: 1999
A29: 1,997 | B29: Pesos | C29: 2.4579 | D29: 2.4537 | E29: 2.4466 | F29: 2.4359 | G29: 2.4513 | H29: 2.4415 | I29: 2.4308 | J29: 2.4475 | K29: 2.4506 | L29: 2.4254 | M29: 2.4389 | N29: 2.4238 | P29: 22 | Q29: $ 1,448.3447 | R29: $ 1,638.4074 | S29: $ 1,743.9631 | T29: $ 1,816.5238 | U29: $ 1,878.1579 | V29: $ 1,934.2001 | W29: $ 1,989.9857 | X29: $ 2,037.6557 | Y29: $ 2,071.6480 | AI29: 26 | AJ29: 2000
A30: 1,998 | B30: Pesos | C30: 2.4011 | D30: 2.4054 | E30: 2.3989 | F30: 2.4012 | G30: 2.3958 | H30: 2.3934 | I30: 2.3827 | J30: 2.3664 | K30: 2.3451 | L30: 2.3211 | M30: 2.2956 | N30: 2.2696 | P30: 23 | Q30: $ 1,456.0795 | R30: $ 1,643.8811 | S30: $ 1,746.9348 | T30: $ 1,818.5784 | U30: $ 1,880.2333 | V30: $ 1,935.8917 | W30: $ 1,991.9355 | X30: $ 2,039.0029 | Y30: $ 2,072.6283 | AI30: 27 | AJ30: 2001
A31: 1,999 | B31: Pesos | C31: 2.2646 | D31: 2.2467 | E31: 2.2487 | F31: 2.2694 | G31: 2.2685 | H31: 2.2670 | I31: 2.2706 | J31: 2.2748 | K31: 2.2943 | L31: 2.2784 | M31: 2.2699 | N31: 2.2792 | P31: 24 | Q31: $ 1,463.8557 | R31: $ 1,649.3730 | S31: $ 1,749.9116 | T31: $ 1,820.6354 | U31: $ 1,882.3110 | V31: $ 1,937.5848 | W31: $ 1,993.8872 | X31: $ 2,040.3509 | Y31: $ 2,073.6092 | AI31: 28 | AJ31: 2002
A32: 2,000 | B32: Pesos | C32: 2.3100 | D32: 2.3312 | E32: 2.3438 | F32: 2.3153 | G32: 2.3405 | H32: 2.3543 | I32: 2.3503 | J32: 2.3534 | K32: 2.3779 | L32: 2.3841 | M32: 2.3850 | N32: 2.3434 | P32: 25 | Q32: $ 1,471.6735 | R32: $ 1,654.8833 | S32: $ 1,752.8934 | T32: $ 1,822.6947 | U32: $ 1,884.3910 | V32: $ 1,939.2793 | W32: $ 1,995.8409 | X32: $ 2,041.6999 | Y32: $ 2,074.5904 | AI32: 29 | AJ32: 2003
A33: 2,001 | B33: Pesos | C33: 2.3537 | D33: 2.3438 | E33: 2.3153 | F33: 2.3405 | G33: 2.3543 | H33: 2.3503 | I33: 2.3534 | J33: 2.3779 | K33: 2.3841 | L33: 2.3887 | M33: 2.3434 | N33: 2.3415 | P33: 26 | Q33: $ 1,479.5329 | R33: $ 1,660.4120 | S33: $ 1,755.8803 | T33: $ 1,824.7563 | U33: $ 1,886.4733 | V33: $ 1,940.9754 | W33: $ 1,997.7964 | X33: $ 2,043.0497 | Y33: $ 2,075.5722 | AI33: 30 | AJ33: 2004
A34: 2,002 | B34: Pesos | C34: 2.3749 | D34: 2.6410 | E34: 2.9423 | F34: 3.5808 | G34: 4.0277 | H34: 4.3587 | I34: 4.5804 | J34: 4.7949 | K34: 4.9287 | L34: 4.9803 | M34: 4.8957 | N34: 4.8810 | P34: 27 | Q34: $ 1,487.4344 | R34: $ 1,665.9591 | S34: $ 1,758.8724 | T34: $ 1,826.8202 | U34: $ 1,888.5580 | V34: $ 1,942.6729 | W34: $ 1,999.7538 | X34: $ 2,044.4004 | Y34: $ 2,076.5544 | AI34: 31 | AJ34: 2005
A35: 2,003 | B35: Pesos | C35: 4.8816 | D35: 4.8981 | E35: 4.8685 | F35: 4.7702 | G35: 4.7400 | H35: 4.7355 | I35: 4.7358 | J35: 4.8036 | K35: 4.7931 | L35: 4.8187 | M35: 4.8672 | N35: 4.9550 | P35: 28 | Q35: $ 1,495.3780 | R35: $ 1,671.5248 | S35: $ 1,761.8695 | T35: $ 1,828.8865 | U35: $ 1,890.6449 | V35: $ 1,944.3720 | W35: $ 2,001.7132 | X35: $ 2,045.7521 | Y35: $ 2,077.5370 | AI35: 32 | AJ35: 2006
A36: 2,004 | B36: Pesos | C36: 4.9345 | D36: 4.9974 | E36: 5.0315 | F36: 5.0544 | G36: 5.1426 | H36: 5.1375 | I36: 5.1913 | J36: 5.3180 | K36: 5.3300 | L36: 5.3614 | M36: 5.2909 | N36: 5.3434 | P36: 29 | Q36: $ 1,503.3641 | R36: =IF(O41=0,R35*R$39,"") -> $ 1,677.1091 | S36: $ 1,764.8717 | T36: $ 1,830.9551 | U36: $ 1,892.7341 | V36: $ 1,946.0725 | W36: $ 2,003.6745 | X36: $ 2,047.1046 | Y36: $ 2,078.5202 | AI36: 33 | AJ36: 2007
A37: 2,005 | B37: Pesos | C37: 5.2818 | D37: 5.3449 | E37: 5.4592 | F37: 5.5337 | G37: 5.5317 | H37: 5.5317 | I37: 5.6104 | J37: 5.6798 | K37: 5.7776 | L37: 5.8512 | M37: 5.8599 | N37: 5.9145 | P37: 30 | Q37: $ 1,511.3928 | S37: $ 1,767.8790 | T37: $ 1,833.0260 | U37: $ 1,894.8256 | V37: $ 1,947.7745 | W37: $ 2,005.6377 | X37: $ 2,048.4580 | Y37: $ 2,079.5038 | AI37: 34 | AJ37: 2008
A38: 2,006 | B38: Pesos | C38: 5.9841 | D38: 6.0704 | E38: 6.0504 | F38: 6.1389 | G38: 6.1549 | H38: 6.2065 | I38: 6.2507 | J38: 6.2927 | K38: 6.2865 | L38: 6.2901 | M38: 6.3021 | N38: 6.3294 | P38: 31 | Q38: $ 1,519.4644 | S38: =IF(S$40=0,"",S37*S$39) -> $ 1,770.8915 | U38: =IF(U$40=0,"",U37*U$39) -> $ 1,896.9195 | W38: =IF(W$40=0,"",W37*W$39) -> $ 2,007.6029 | X38: =IF(X$40=0,"",X37*X$39) -> $ 2,049.8123 | Z38: =IF(Z$40=0,"",Z37*Z$39) ->  | AB38: =IF(AB$40=0,"",AB37*AB$39) ->  | AI38: 35 | AJ38: 2009
A39: 2,007 | B39: Pesos | C39: 6.3521 | D39: 6.4025 | E39: 6.4401 | F39: 6.5520 | G39: 6.6544 | H39: 6.7861 | I39: 6.9319 | J39: 6.9902 | K39: 7.0586 | L39: 7.1358 | M39: 7.2003 | N39: 7.2469 | Q39: =(Q40/Q41)^(1/31) -> 1.0053 | R39: =(R40/R41)^(1/IF(O41=0,29,28)) -> 1.0033 | S39: =(S40/S41)^(1/31) -> 1.0017 | T39: =(T40/T41)^(1/30) -> 1.0011 | U39: =(U40/U41)^(1/31) -> 1.0011 | V39: =(V40/V41)^(1/30) -> 1.0009 | W39: =(W40/W41)^(1/31) -> 1.0010 | X39: 1.0007 | Y39: =(Y40/Y41)^(1/30) -> 1.0005 | Z39: =(Z40/Z41)^(1/31) -> 0.0000 | AA39: =(AA40/AA41)^(1/30) ->  | AB39: =(AB40/AB41)^(1/31) ->  | AI39: 36 | AJ39: 2010
A40: 2,008 | B40: Pesos | C40: 7.2627 | D40: 7.3732 | E40: 7.4497 | F40: 7.5402 | G40: 7.6338 | H40: 7.7143 | I40: 7.7821 | J40: 7.8348 | K40: 7.8915 | L40: 7.9370 | M40: 8.1160 | N40: 7.9064 | O40: =AJ2 -> 2,024 | Q40: =LOOKUP($AJ$2,$A$7:$A$92,C7:C92) -> 1,519.4644 | R40: =LOOKUP($AJ$2,$A$7:$A$92,D7:D92) -> 1,673.7733 | S40: 1,764.4858 | T40: 1,825.3510 | U40: 1,888.9278 | V40: 1,939.1221 | W40: 1,998.8948 | X40: 2,040.2714 | Y40: 2,069.4360 | Z40: 0.0000 | AA40: 0.0000 | AB40: 0.0000 | AI40: 37 | AJ40: 2011
A41: 2,009 | B41: Pesos | C41: 7.8904 | D41: 7.8995 | E41: 7.9740 | F41: 8.0306 | G41: 8.0593 | H41: 8.1423 | I41: 8.2543 | J41: 8.3366 | K41: 8.4130 | L41: 8.5095 | M41: 8.5867 | N41: 8.6876 | O41: =MOD(O40,4) -> 0 | Q41: =IF(O40=1975,12.073025,LOOKUP($AJ$2-1,$A$7:$A$92,$N$7:$N$923)) -> 1,288.1962 | R41: =Q38 -> 1,519.4644 | S41: =R40 -> 1,673.7733 | T41: =S40 -> 1,764.4858 | U41: 1,825.3510 | V41: 1,888.9278 | W41: 1,939.1221 | X41: 1,998.8948 | Y41: 2,040.2714 | Z41: 2,069.4360 | AA41: 0.0000 | AB41: 0.0000 | AI41: 38 | AJ41: 2012
A42: 2,010 | B42: Pesos | C42: 8.7952 | D42: 8.9400 | E42: 9.0785 | F42: 9.1887 | G42: 9.2946 | H42: 9.3984 | I42: 9.5033 | J42: 9.6047 | K42: 9.7005 | L42: 9.8800 | M42: 9.8797 | N42: 9.9729 | AI42: 39 | AJ42: 2013
A43: 2,011 | B43: Pesos | C43: 10.0665 | D43: 10.1761 | E43: 10.2719 | F43: 10.3704 | G43: 10.4736 | H43: 10.5796 | I43: 10.7032 | J43: 10.8097 | K43: 10.9296 | L43: 11.0294 | M43: 11.1343 | N43: 11.2355 | AI43: 40 | AJ43: 2014
A44: 2,012 | B44: Pesos | C44: 11.3426 | D44: 11.4591 | E44: 11.5756 | F44: 11.7128 | G44: 11.8418 | H44: 11.9558 | I44: 12.0756 | J44: 12.2010 | K44: 12.3287 | L44: 12.4538 | M44: 12.5817 | N44: 12.7062 | AI44: 41 | AJ44: 2015
A45: 2,013 | B45: Pesos | C45: 12.8413 | D45: 12.9745 | E45: 13.0995 | F45: 13.2304 | G45: 13.3936 | H45: 13.5666 | I45: 13.7349 | J45: 13.8898 | K45: 14.0346 | L45: 14.1984 | M45: 14.3745 | N45: 14.5826 | AI45: 42 | AJ45: 2016
A46: 2,014 | B46: Pesos | C46: 14.5884 | D46: 16.0935 | E46: 16.4846 | F46: 16.7681 | G46: 17.0775 | H46: 17.3410 | I46: 17.5718 | J46: 17.8263 | K46: 18.1480 | L46: 18.3664 | M46: 18.5358 | N46: 18.7211 | AI46: 43 | AJ46: 2017
A47: 2,015 | B47: Pesos | C47: 18.7096 | D47: 18.8184 | E47: 18.9811 | F47: 19.1225 | G47: 19.3966 | H47: 19.6587 | I47: 19.9447 | J47: 20.2326 | K47: 20.5007 | L47: 20.6917 | M47: 21.0021 | N47: 21.3171 | AI47: 44 | AJ47: 2018
A48: 2,016 | B48: Pesos | C48: 21.6368 | D48: 21.9614 | E48: 22.4885 | F48: 22.8258 | G48: 23.6475 | H48: 24.3333 | I48: 24.9903 | J48: 25.0903 | K48: 25.1906 | L48: 25.3418 | M48: 25.6205 | N48: 25.8255 | AI48: 45 | AJ48: 2019
A49: 2,017 | B49: Pesos | C49: 26.2129 | D49: 26.6585 | E49: 26.8984 | F49: 27.0329 | G49: 27.2492 | H49: 27.7669 | I49: 28.4611 | J49: 29.0018 | K49: 29.0309 | L49: 29.4373 | M49: 30.1732 | N49: 30.6862 | AI49: 46 | AJ49: 2020
A50: 2,018 | B50: Pesos | C50: 32.6175 | D50: 34.1977 | E50: 34.8609 | F50: 35.4852 | G50: 38.1578 | H50: 40.6353 | I50: 42.5666 | J50: 44.6540 | K50: 51.8134 | L50: 53.3741 | M50: 53.4326 | N50: 54.1154 | AI50: 47 | AJ50: 2021
A51: 2,019 | B51: Pesos | C51: 54.4275 | D51: 56.2613 | E51: 58.5632 | F51: 61.2554 | G51: 64.2791 | H51: 65.3325 | I51: 69.0001 | J51: 72.7261 | K51: 75.7499 | L51: 78.4810 | M51: 82.7190 | N51: 85.7770 | AI51: 48 | AJ51: 2022
A52: 2,020 | B52: Pesos | C52: 87.0645 | D52: 88.0399 | E52: 88.8788 | F52: 87.7278 | G52: 88.0399 | H52: 91.2588 | I52: 94.4971 | J52: 98.3597 | K52: 102.0077 | L52: 106.7677 | M52: 111.2155 | N52: 116.1121 | AI52: 49 | AJ52: 2023
A53: 2,021 | B53: Pesos | C53: 122.5692 | D53: 130.0213 | E53: 135.0739 | F53: 141.5311 | G53: 146.0765 | H53: 151.6363 | I53: 154.0162 | J53: 157.8984 | K53: 162.3072 | L53: 166.9306 | M53: 171.8466 | N53: 175.7287 | AI53: 50 | AJ53: 2024
A54: 2,022 | B54: Pesos | C54: 182.2639 | D54: 190.9060 | E54: 202.9815 | F54: 214.9790 | G54: 226.0791 | H54: 236.9841 | I54: 253.7610 | J54: 274.5176 | K54: 289.5583 | L54: 303.3896 | M54: 322.4880 | N54: 342.2887 | AI54: 51 | AJ54: 2025
A55: 2,023 | B55: Pesos | C55: 364.4693 | D55: 390.0835 | E55: 409.8256 | F55: 440.1802 | G55: 469.2667 | H55: 504.4203 | I55: 539.8079 | J55: 640.8207 | K55: 699.8522 | L55: 752.7581 | M55: 841.8514 | N55: 1,288.1962 | AI55: 52 | AJ55: 2026
A56: 2,024 | B56: Pesos | C56: 1,519.4644 | D56: 1,673.7733 | E56: 1764.4858 | F56: 1,825.3510 | G56: 1,888.9278 | H56: 1,939.1221 | I56: 1,998.8948 | J56: 2,040.2714 | K56: 2,069.4360 | AI56: 53 | AJ56: 2027
A57: 2,025 | B57: Pesos | AI57: 54 | AJ57: 2028
A58: 2,026 | B58: Pesos | AI58: 55 | AJ58: 2029
A59: 2,027 | B59: Pesos | AI59: 56 | AJ59: 2030
A60: 2,028 | B60: Pesos | AI60: 57 | AJ60: 2031
A61: 2,029 | B61: Pesos | AI61: 58 | AJ61: 2032
A62: 2,030 | B62: Pesos | AI62: 59 | AJ62: 2033
A63: 2,031 | B63: Pesos | AI63: 60 | AJ63: 2034
A64: 2,032 | B64: Pesos | AI64: 61 | AJ64: 2035
A65: 2,033 | B65: Pesos | AI65: 62 | AJ65: 2036
A66: 2,034 | B66: Pesos | AI66: 63 | AJ66: 2037
A67: 2,035 | B67: Pesos | AI67: 64 | AJ67: 2038
A68: 2,036 | B68: Pesos | AI68: 65 | AJ68: 2039
A69: 2,037 | B69: Pesos | AI69: 66 | AJ69: 2040
A70: 2,038 | B70: Pesos | AI70: 67 | AJ70: 2041
A71: 2,039 | B71: Pesos | AI71: 68 | AJ71: 2042
A72: 2,040 | B72: Pesos | AI72: 69 | AJ72: 2043
A73: 2,041 | B73: Pesos | AI73: 70 | AJ73: 2044
A74: 2,042 | B74: Pesos | AI74: 71 | AJ74: 2045
A75: 2,043 | B75: Pesos | AI75: 72 | AJ75: 2046
A76: 2,044 | B76: Pesos | AI76: 73 | AJ76: 2047
A77: 2,045 | B77: Pesos | AI77: 74 | AJ77: 2048
A78: 2,046 | B78: Pesos | AI78: 75 | AJ78: 2049
A79: 2,047 | B79: Pesos | AI79: 76 | AJ79: 2050
A80: 2,048 | B80: Pesos | AI80: 77 | AJ80: 2051
A81: 2,049 | B81: Pesos | AI81: 78 | AJ81: 2052
A82: 2,050 | B82: Pesos | AI82: 79 | AJ82: 2053
A83: 2,051 | B83: Pesos | AI83: 80 | AJ83: 2054
A84: 2,052 | B84: Pesos | AI84: 81 | AJ84: 2055
A85: 2,053 | B85: Pesos | AI85: 82 | AJ85: 2056
A86: 2,054 | B86: Pesos | AI86: 83 | AJ86: 2057
A87: 2,055 | B87: Pesos | AI87: 84 | AJ87: 2058
A88: 2,056 | B88: Pesos | AI88: 85 | AJ88: 2059
A89: 2,057 | B89: Pesos | AI89: 86 | AJ89: 2060
A90: 2,058 | B90: Pesos
A91: 2,059 | B91: Pesos
A92: 2,060 | B92: Pesos

Sheet MMCABA
D1: Año | AI1: Código
AI2: 50 | AJ2: =LOOKUP(AI2,AI4:AJ89,AJ4:AJ89) -> 2024
AI3: Nª | AJ3: Año
A4: COTIZACIÓN MENSUAL DEL MODULO MONETARIO CONSUMIDOR CABA (Norma IRAM 34 554) -GCBA- | M4: Factor actual de conversión: | N4: =C55/246.41 -> 2.0812 | P4: COTIZACIÓN DIARIA DEL MÓDULO MONETARIO CONSUMIDOR CABA (IRAM 34 554) -MCBA- | AA4: AÑO | AB4: =O40 -> 2024 | AI4: 1 | AJ4: 1975
A5: Expresado en la moneda corriente de cada momento con índice de Precios al Consumidor del INDEC de 1975 a 2008, State Prices de 2009 a 2012 y DGEyC CABA desde 2013. | P5: Expresado en la moneda corriente de cada momento con índice de Precios al Consumidor del INDEC de 1975 a 2008, State Prices de 2009 a 2012 y DGEyC CABA desde 2013. | AI5: 2 | AJ5: 1976
A6: AÑO | B6: Moneda | C6: ENERO | D6: FEBRERO | E6: MARZO | F6: ABRIL | G6: MAYO | H6: JUNIO | I6: JULIO | J6: AGOSTO | K6: SETIEMBR | L6: OCTUBRE | M6: NOVIEMBR | N6: DICIEMBRE | P6: =IF(O40<1984,"Pesos Ley 181 188",IF(O40<1986,"Pesos Argentinos",IF(O40<1992,"Australes","Pesos"))) -> Pesos | V6: =IF(O40=1983,"Pesos Argentinos",IF(O40=1985,"Australes","")) ->  | AB6: (C) Miguel Ángel Martín | AI6: 3 | AJ6: 1977
A7: 1,975 | B7: $ ley | C7: $ 12.5800 | D7: $ 13.1600 | E7: $ 14.2200 | F7: $ 15.6000 | G7: $ 16.2100 | H7: $ 19.6400 | I7: $ 26.4600 | J7: $ 32.4000 | K7: $ 35.9100 | L7: $ 40.8600 | M7: $ 44.5200 | N7: $ 53.1700 | P7: DÍA | Q7: ENERO | R7: FEBRERO | S7: MARZO | T7: ABRIL | U7: MAYO | V7: JUNIO | W7: JULIO | X7: AGOSTO | Y7: SETIEMBRE | Z7: OCTUBRE | AA7: NOVIEMBRE | AB7: DICIEMBRE | AI7: 4 | AJ7: 1978
A8: 1,976 | B8: $ ley | C8: $ 57.9000 | D8: $ 68.8900 | E8: $ 94.7800 | F8: $ 126.9300 | G8: $ 142.2800 | H8: $ 146.1600 | I8: $ 152.3600 | J8: $ 160.7600 | K8: $ 177.7300 | L8: $ 192.7700 | M8: $ 208.1000 | N8: $ 237.9600 | P8: 1 | Q8: =Q41*$Q$39 -> 1,380.7713 | R8: =R41*$Q$39 -> 1,749.4523 | S8: 1,996.4770 | T8: 2,260.0120 | U8: 2,481.2988 | V8: 2,589.8899 | W8: 2,714.2046 | X8: 2,853.2934 | Y8: 2,973.1317 | Z8: 3,091.8246 | AA8: 0.0000 | AB8: 0.0000 | AI8: 5 | AJ8: 1979
A9: 1,977 | B9: $ ley | C9: $ 257.0700 | D9: $ 278.2900 | E9: $ 299.2900 | F9: $ 317.2800 | G9: $ 337.8900 | H9: $ 363.7300 | I9: $ 390.4700 | J9: $ 434.7400 | K9: $ 470.8100 | L9: $ 529.6300 | M9: $ 577.5000 | N9: $ 619.7200 | P9: 2 | Q9: =Q8*Q$39 -> 1,391.3527 | R9: =IF(R$40=0,"",R8*R$39) -> 1,757.4384 | S9: =IF(S$40=0,"",S8*S$39) -> 2,004.4780 | T9: 2,267.0600 | U9: 2,484.7297 | V9: 2,593.9405 | W9: 2,718.5837 | X9: 2,857.0827 | Y9: 2,977.0137 | AI9: 6 | AJ9: 1980
A10: 1,978 | B10: $ ley | C10: $ 702.4900 | D10: $ 746.0800 | E10: $ 816.9100 | F10: $ 907.3700 | G10: $ 986.2300 | H10: $ 1,050.2500 | I10: $ 1,119.5500 | J10: $ 1,206.9600 | K10: $ 1,284.1700 | L10: $ 1,409.3900 | M10: $ 1,533.3300 | N10: $ 1,672.2800 | P10: 3 | Q10: =Q9*Q$39 -> 1,402.0152 | R10: 1,765.4610 | S10: 2,012.5110 | T10: 2,274.1300 | U10: 2,488.1652 | V10: 2,597.9974 | W10: 2,722.9698 | X10: 2,860.8770 | Y10: 2,980.9008 | AI10: 7 | AJ10: 1981
A11: 1,979 | B11: $ ley | C11: $ 1,885.8500 | D11: $ 2,026.2100 | E11: $ 2,183.2400 | F11: $ 2,336.1000 | G11: $ 2,497.7700 | H11: $ 2,739.9400 | I11: $ 2,935.8900 | J11: $ 3,272.0500 | K11: $ 3,496.0400 | L11: $ 3,647.8000 | M11: $ 3,835.2700 | N11: $ 4,009.0500 | P11: 4 | Q11: 1,412.7595 | R11: 1,773.5202 | S11: 2,020.5763 | T11: 2,281.2221 | U11: 2,491.6055 | V11: 2,602.0607 | W11: 2,727.3631 | X11: 2,864.6764 | Y11: 2,984.7930 | AI11: 8 | AJ11: 1982
A12: 1,980 | B12: $ ley | C12: $ 4,298.0400 | D12: $ 4,527.9800 | E12: $ 4,790.3500 | F12: $ 5,086.1800 | G12: $ 5,380.3000 | H12: $ 5,689.1100 | I12: $ 5,949.3200 | J12: $ 6,152.8600 | K12: $ 6,432.4100 | L12: $ 6,922.2200 | M12: $ 7,246.0100 | N12: $ 7,522.3200 | P12: 5 | Q12: 1,423.5861 | R12: 1,781.6161 | S12: 2,028.6739 | T12: 2,288.3363 | U12: 2,495.0506 | V12: 2,606.1304 | W12: 2,731.7634 | X12: 2,868.4808 | Y12: 2,988.6903 | AI12: 9 | AJ12: 1983
A13: 1,981 | B13: $ ley | C13: $ 7,890.9600 | D13: $ 8,220.6100 | E13: $ 8,713.2600 | F13: $ 9,399.8900 | G13: $ 10,108.5600 | H13: $ 11,055.7100 | I13: $ 12,188.7700 | J13: $ 13,154.5400 | K13: $ 14,093.7200 | L13: $ 14,914.2600 | M13: $ 15,989.8400 | N13: $ 17,397.2100 | P13: 6 | Q13: 1,434.4956 | R13: 1,789.7491 | S13: 2,036.8039 | T13: 2,295.4727 | U13: 2,498.5005 | V13: 2,610.2064 | W13: 2,736.1708 | X13: 2,872.2902 | Y13: 2,992.5926 | AI13: 10 | AJ13: 1984
A14: 1,982 | B14: $ ley | C14: $ 19,471.9700 | D14: $ 20,499.9800 | E14: $ 21,468.1500 | F14: $ 22,367.0300 | G14: $ 23,051.5900 | H14: $ 24,871.3900 | I14: $ 28,915.1300 | J14: $ 33,156.0800 | K14: $ 38,822.3800 | L14: $ 43,747.6400 | M14: $ 48,711.2900 | N14: $ 53,885.2200 | P14: 7 | Q14: 1,445.4888 | R14: 1,797.9191 | S14: 2,044.9665 | T14: 2,302.6313 | U14: 2,501.9551 | V14: 2,614.2888 | W14: 2,740.5853 | X14: 2,876.1047 | Y14: 2,996.5000 | AI14: 11 | AJ14: 1985
A15: 1,983 | B15: $ ley/$ arg | C15: $ 62,500.1000 | D15: $ 70,637.6100 | E15: $ 78,595.8700 | F15: $ 86,666.8400 | G15: $ 94,523.1800 | H15: $ 109,480.2300 | I15: $ 12.3114 | J15: $ 14.4344 | K15: $ 17.5187 | L15: $ 20.4921 | M15: $ 24.4337 | N15: $ 28.7587 | P15: 8 | Q15: 1,456.5662 | R15: 1,806.1265 | S15: 2,053.1618 | T15: 2,309.8123 | U15: 2,505.4144 | V15: 2,618.3775 | W15: 2,745.0070 | X15: 2,879.9243 | Y15: 3,000.4126 | AI15: 12 | AJ15: 1986
A16: 1,984 | B16: $ arg | C16: $ 32.3568 | D16: $ 37.8550 | E16: $ 45.5236 | F16: $ 53.9443 | G16: $ 63.1576 | H16: $ 74.4702 | I16: $ 88.0853 | J16: $ 108.2101 | K16: $ 138.0192 | L16: $ 164.6883 | M16: $ 189.3487 | N16: $ 226.6091 | P16: 9 | Q16: 1,467.7284 | R16: 1,814.3713 | S16: 2,061.3900 | T16: 2,317.0156 | U16: 2,508.8786 | V16: 2,622.4727 | W16: 2,749.4357 | X16: 2,883.7490 | Y16: 3,004.3302 | AI16: 13 | AJ16: 1987
A17: 1,985 | B17: $ arg/Austral | C17: $ 283.5550 | D17: $ 342.1605 | E17: $ 432.8296 | F17: $ 560.3652 | G17: $ 701.1067 | H17: $ 915.1908 | I17: $ 0.9719 | J17: $ 1.0017 | K17: $ 1.0216 | L17: $ 1.0415 | M17: $ 1.0662 | N17: $ 1.1000 | P17: 10 | Q17: 1,478.9763 | R17: 1,822.6537 | S17: 2,069.6511 | T17: 2,324.2414 | U17: 2,512.3476 | V17: 2,626.5743 | W17: 2,753.8717 | X17: 2,887.5787 | Y17: 3,008.2530 | AI17: 14 | AJ17: 1988
A18: 1,986 | B18: Austral | C18: $ 1.1333 | D18: $ 1.1525 | E18: $ 1.2060 | F18: $ 1.2631 | G18: $ 1.3140 | H18: $ 1.3737 | I18: $ 1.4666 | J18: $ 1.5954 | K18: $ 1.7108 | L18: $ 1.8143 | M18: $ 1.9104 | N18: $ 2.0010 | P18: 11 | Q18: 1,490.3103 | R18: 1,830.9740 | S18: 2,077.9454 | T18: 2,331.4898 | U18: 2,515.8213 | V18: 2,630.6822 | W18: 2,758.3148 | X18: 2,891.4135 | Y18: 3,012.1809 | AI18: 15 | AJ18: 1989
A19: 1,987 | B19: Austral | C19: $ 2.1522 | D19: $ 2.2922 | E19: $ 2.4801 | F19: $ 2.5636 | G19: $ 2.6706 | H19: $ 2.8843 | I19: $ 3.1762 | J19: $ 3.6118 | K19: $ 4.0339 | L19: $ 4.8224 | M19: $ 5.3176 | N19: $ 5.4985 | P19: 12 | Q19: 1,501.7312 | R19: 1,839.3323 | S19: 2,086.2729 | T19: 2,338.7607 | U19: 2,519.2999 | V19: 2,634.7966 | W19: 2,762.7650 | X19: 2,895.2535 | Y19: 3,016.1139 | AI19: 16 | AJ19: 1990
A20: 1,988 | B20: Austral | C20: $ 5.9985 | D20: $ 6.6243 | E20: $ 7.6006 | F20: $ 8.9104 | G20: $ 10.3112 | H20: $ 12.1636 | I20: $ 15.2825 | J20: $ 19.5043 | K20: $ 21.7848 | L20: $ 23.7440 | M20: $ 25.1008 | N20: $ 26.8175 | P20: 13 | Q20: 1,513.2396 | R20: 1,847.7286 | S20: 2,094.6337 | T20: 2,346.0544 | U20: 2,522.7832 | V20: 2,638.9175 | W20: 2,767.2224 | X20: 2,899.0985 | Y20: 3,020.0520 | AI20: 17 | AJ20: 1991
A21: 1,989 | B21: Austral | C21: $ 29.2102 | D21: $ 32.0118 | E21: $ 37.4554 | F21: $ 49.9553 | G21: $ 89.1540 | H21: $ 191.2154 | I21: $ 567.1999 | J21: $ 781.9650 | K21: $ 855.1098 | L21: $ 902.9543 | M21: $ 961.8285 | N21: $ 1,347.2607 | P21: 14 | Q21: 1,524.8362 | R21: 1,856.1634 | S21: 2,103.0281 | T21: 2,353.3707 | U21: 2,526.2714 | V21: 2,643.0448 | W21: 2,771.6871 | X21: 2,902.9486 | Y21: 3,023.9953 | AI21: 18 | AJ21: 1992
A22: 1,990 | B22: Austral | C22: $ 2,414.3441 | D22: $ 3,900.8654 | E22: $ 7,627.1929 | F22: $ 8,494.6039 | G22: $ 9,650.5012 | H22: $ 10,991.7148 | I22: $ 12,181.6179 | J22: $ 14,049.9934 | K22: $ 16,252.6595 | L22: $ 17,502.5604 | M22: $ 18,584.3254 | N22: $ 19,453.3775 | P22: 15 | Q22: 1,536.5217 | R22: 1,864.6366 | S22: 2,111.4561 | T22: 2,360.7099 | U22: 2,529.7644 | V22: 2,647.1785 | W22: 2,776.1589 | X22: 2,906.8038 | Y22: 3,027.9438 | AI22: 19 | AJ22: 1993
A23: 1,991 | B23: Austral | C23: $ 20,951.0320 | D23: $ 26,605.7920 | E23: $ 29,543.6904 | F23: $ 31,171.7049 | G23: $ 32,045.9170 | H23: $ 33,046.9555 | I23: $ 33,903.2037 | J23: $ 34,344.2426 | K23: $ 34,950.9187 | L23: $ 35,423.0358 | M23: $ 35,560.8032 | N23: $ 35,791.6721 | P23: 16 | Q23: 1,548.2967 | R23: 1,873.1485 | S23: 2,119.9179 | T23: 2,368.0720 | U23: 2,533.2622 | V23: 2,651.3187 | W23: 2,780.6379 | X23: 2,910.6642 | Y23: 3,031.8974 | AI23: 20 | AJ23: 1994
A24: 1,992 | B24: Pesos | C24: $ 3.6881 | D24: $ 3.7675 | E24: $ 3.8466 | F24: $ 3.8961 | G24: $ 3.9223 | H24: $ 3.9531 | I24: $ 4.0214 | J24: $ 4.0816 | K24: $ 4.1238 | L24: $ 4.1760 | M24: $ 4.1953 | N24: $ 4.2072 | P24: 17 | Q24: 1,560.1619 | R24: 1,881.6993 | S24: 2,128.4135 | T24: 2,375.4571 | U24: 2,536.7649 | V24: 2,655.4654 | W24: 2,785.1242 | X24: 2,914.5297 | Y24: 3,035.8561 | AI24: 21 | AJ24: 1995
A25: 1,993 | B25: Pesos | C25: $ 4.2422 | D25: $ 4.2732 | E25: $ 4.3053 | F25: $ 4.3503 | G25: $ 4.4063 | H25: $ 4.4380 | I25: $ 4.4522 | J25: $ 4.4530 | K25: =303661.1/10000*0.1478507787 -> $ 4.4897 | L25: $ 4.5150 | M25: $ 4.5176 | N25: $ 4.5170 | P25: 18 | Q25: 1,572.1181 | R25: 1,890.2891 | S25: =IF(S$40=0,"",S24*S$39) -> 2,136.9433 | T25: 2,382.8651 | U25: 2,540.2724 | V25: 2,659.6186 | W25: 2,789.6177 | X25: 2,918.4003 | Y25: 3,039.8201 | AI25: 22 | AJ25: 1996
A26: 1,994 | B26: Pesos | C26: $ 4.5216 | D26: $ 4.5214 | E26: $ 4.5277 | F26: $ 4.5387 | G26: $ 4.5545 | H26: $ 4.5721 | I26: $ 4.6143 | J26: $ 4.6238 | K26: $ 4.6555 | L26: $ 4.6704 | M26: $ 4.6809 | N26: $ 4.6911 | P26: 19 | Q26: 1,584.1659 | R26: 1,898.9181 | S26: 2,145.5072 | T26: 2,390.2963 | U26: 2,543.7848 | V26: 2,663.7782 | W26: 2,794.1185 | X26: 2,922.2760 | Y26: 3,043.7892 | AI26: 23 | AJ26: 1997
A27: 1,995 | B27: Pesos | C27: $ 4.7496 | D27: $ 4.7495 | E27: $ 4.7281 | F27: $ 4.7497 | G27: $ 4.7507 | H27: $ 4.7409 | I27: $ 4.7602 | J27: $ 4.7486 | K27: $ 4.7564 | L27: $ 4.7726 | M27: $ 4.7617 | N27: $ 4.7665 | P27: 20 | Q27: 1,596.3061 | R27: 1,907.5865 | S27: 2,154.1054 | T27: 2,397.7506 | U27: 2,547.3020 | V27: 2,667.9444 | W27: 2,798.6265 | X27: 2,926.1569 | Y27: 3,047.7634 | AI27: 24 | AJ27: 1998
A28: 1,996 | B28: Pesos | C28: $ 4.7808 | D28: $ 4.7653 | E28: $ 4.7396 | F28: $ 4.7397 | G28: $ 4.7354 | H28: $ 4.7356 | I28: $ 4.7612 | J28: $ 4.7575 | K28: $ 4.7662 | L28: $ 4.7902 | M28: $ 4.7828 | N28: $ 4.7691 | P28: 21 | Q28: 1,608.5392 | R28: 1,916.2945 | S28: 2,162.7381 | T28: 2,405.2282 | U28: 2,550.8241 | V28: 2,672.1171 | W28: 2,803.1418 | X28: 2,930.0430 | Y28: 3,051.7429 | AI28: 25 | AJ28: 1999
A29: 1,997 | B29: Pesos | C29: $ 4.7914 | D29: $ 4.8098 | E29: $ 4.7861 | F29: $ 4.7703 | G29: $ 4.7663 | H29: $ 4.7772 | I29: $ 4.7878 | J29: $ 4.7957 | K29: $ 4.7934 | L29: $ 4.7859 | M29: $ 4.7766 | N29: $ 4.7848 | P29: 22 | Q29: 1,620.8662 | R29: 1,925.0422 | S29: 2,171.4054 | T29: 2,412.7292 | U29: 2,554.3510 | V29: 2,676.2963 | W29: 2,807.6644 | X29: 2,933.9342 | Y29: 3,055.7276 | AI29: 26 | AJ29: 2000
A30: 1,998 | B30: Pesos | C30: $ 4.8149 | D30: $ 4.8316 | E30: $ 4.8256 | F30: $ 4.8261 | G30: $ 4.8226 | H30: $ 4.8318 | I30: $ 4.8469 | J30: $ 4.8479 | K30: $ 4.8464 | L30: $ 4.8287 | M30: $ 4.8172 | N30: $ 4.8166 | P30: 23 | Q30: 1,633.2875 | R30: 1,933.8299 | S30: 2,180.1075 | T30: 2,420.2535 | U30: 2,557.8829 | V30: 2,680.4821 | W30: 2,812.1942 | X30: 2,937.8306 | Y30: 3,059.7175 | AI30: 27 | AJ30: 2001
A31: 1,999 | B31: Pesos | C31: $ 4.8393 | D31: $ 4.8315 | E31: $ 4.7952 | F31: $ 4.7905 | G31: $ 4.7669 | H31: $ 4.7667 | I31: $ 4.7755 | J31: $ 4.7575 | K31: $ 4.7481 | L31: $ 4.7473 | M31: $ 4.7323 | N31: $ 4.7294 | P31: 24 | Q31: 1,645.8041 | R31: 1,942.6576 | S31: 2,188.8444 | T31: 2,427.8012 | U31: 2,561.4196 | V31: 2,684.6744 | W31: 2,816.7314 | X31: 2,941.7321 | Y31: 3,063.7125 | AI31: 28 | AJ31: 2002
A32: 2,000 | B32: Pesos | C32: $ 4.7693 | D32: $ 4.7695 | E32: $ 4.7443 | F32: $ 4.7390 | G32: $ 4.7203 | H32: $ 4.7119 | I32: $ 4.7323 | J32: $ 4.6982 | K32: $ 4.6910 | L32: $ 4.6996 | M32: $ 4.6982 | N32: $ 4.6947 | P32: 25 | Q32: 1,658.4166 | R32: 1,951.5257 | S32: 2,197.6163 | T32: 2,435.3725 | U32: 2,564.9612 | V32: 2,688.8732 | W32: 2,821.2759 | X32: 2,945.6389 | Y32: 3,067.7128 | AI32: 29 | AJ32: 2003
A33: 2,001 | B33: Pesos | C33: $ 4.6756 | D33: $ 4.6982 | E33: $ 4.6968 | F33: $ 4.7261 | G33: $ 4.7280 | H33: $ 4.6972 | I33: $ 4.6968 | J33: $ 4.6816 | K33: $ 4.6612 | L33: $ 4.6612 | M33: $ 4.6982 | N33: $ 4.6455 | P33: 26 | Q33: 1,671.1258 | R33: 1,960.4343 | S33: 2,206.4234 | T33: 2,442.9675 | U33: 2,568.5077 | V33: 2,693.0786 | W33: 2,825.8277 | X33: 2,949.5508 | Y33: 3,071.7184 | AI33: 30 | AJ33: 2004
A34: 2,002 | B34: Pesos | C34: $ 4.7280 | D34: $ 4.8765 | E34: $ 5.0911 | F34: $ 5.5964 | G34: $ 5.8209 | H34: $ 6.0316 | I34: $ 6.2239 | J34: $ 6.3697 | K34: $ 6.4555 | L34: $ 6.4697 | M34: $ 6.5020 | N34: $ 6.5151 | P34: 27 | Q34: 1,683.9323 | R34: 1,969.3835 | S34: 2,215.2657 | T34: 2,450.5861 | U34: 2,572.0591 | V34: 2,697.2906 | W34: 2,830.3869 | X34: 2,953.4679 | Y34: 3,075.7291 | AI34: 31 | AJ34: 2005
A35: 2,003 | B35: Pesos | C35: $ 6.6009 | D35: $ 6.6383 | E35: $ 6.6771 | F35: $ 6.6809 | G35: $ 6.6548 | H35: $ 6.6492 | I35: $ 6.6790 | J35: $ 6.6804 | K35: $ 6.6833 | L35: $ 6.7226 | M35: $ 6.7391 | N35: $ 6.7534 | P35: 28 | Q35: 1,696.8370 | R35: 1,978.3735 | S35: 2,224.1435 | T35: 2,458.2284 | U35: 2,575.6154 | V35: 2,701.5092 | W35: 2,834.9535 | X35: 2,957.3903 | Y35: 3,079.7451 | AI35: 32 | AJ35: 2006
A36: 2,004 | B36: Pesos | C36: $ 6.7818 | D36: $ 6.7884 | E36: $ 6.8291 | F36: $ 6.8874 | G36: $ 6.9381 | H36: $ 6.9769 | I36: $ 7.0091 | J36: $ 7.0332 | K36: $ 7.0778 | L36: $ 7.1057 | M36: $ 7.1057 | N36: $ 7.1654 | P36: 29 | Q36: 1,709.8406 | R36: =IF(O41=0,R35*R$39,"") -> 1,987.4047 | S36: 2,233.0569 | T36: 2,465.8946 | U36: 2,579.1766 | V36: 2,705.7344 | W36: 2,839.5274 | X36: 2,961.3178 | Y36: 3,083.7663 | AI36: 33 | AJ36: 2007
A37: 2,005 | B37: Pesos | C37: $ 7.2715 | D37: $ 7.3406 | E37: $ 7.4538 | F37: $ 7.5376 | G37: $ 7.5352 | H37: $ 7.5352 | I37: $ 7.6806 | J37: $ 7.7143 | K37: $ 7.8042 | L37: $ 7.8649 | M37: $ 7.9601 | N37: $ 8.0486 | P37: 30 | Q37: 1,722.9438 | S37: 2,242.0060 | T37: 2,473.5848 | U37: 2,582.7428 | V37: 2,709.9662 | W37: 2,844.1086 | X37: 2,965.2505 | Y37: 3,087.7928 | AI37: 34 | AJ37: 2008
A38: 2,006 | B38: Pesos | C38: $ 8.1514 | D38: $ 8.1836 | E38: $ 8.2821 | F38: $ 8.3626 | G38: $ 8.4019 | H38: $ 8.4426 | I38: $ 8.4947 | J38: $ 8.5426 | K38: $ 8.6193 | L38: $ 8.6932 | M38: $ 8.7547 | N38: $ 8.8404 | P38: 31 | Q38: 1,736.1475 | S38: =IF(S$40=0,"",S37*S$39) -> 2,250.9910 | U38: =IF(U$40=0,"",U37*U$39) -> 2,586.3139 | W38: =IF(W$40=0,"",W37*W$39) -> 2,848.6973 | X38: =IF(X$40=0,"",X37*X$39) -> 2,969.1885 | Z38: =IF(Z$40=0,"",Z37*Z$39) ->  | AB38: =IF(AB$40=0,"",AB37*AB$39) ->  | AI38: 35 | AJ38: 2009
A39: 2,007 | B39: Pesos | C39: $ 8.9418 | D39: $ 8.9688 | E39: $ 9.0375 | F39: $ 9.1047 | G39: $ 9.1431 | H39: $ 9.1829 | I39: $ 9.2288 | J39: $ 9.2828 | K39: $ 9.3571 | L39: $ 9.4211 | M39: $ 9.5016 | N39: $ 9.5897 | Q39: =(Q40/Q41)^(1/31) -> 1.0077 | R39: =(R40/R41)^(1/IF(O41=0,29,28)) -> 1.0046 | S39: =(S40/S41)^(1/31) -> 1.0040 | T39: =(T40/T41)^(1/30) -> 1.0031 | U39: =(U40/U41)^(1/31) -> 1.0014 | V39: =(V40/V41)^(1/30) -> 1.0016 | W39: =(W40/W41)^(1/31) -> 1.0016 | X39: 1.0013 | Y39: =(Y40/Y41)^(1/30) -> 1.0013 | Z39: =(Z40/Z41)^(1/31) -> 0.0000 | AA39: =(AA40/AA41)^(1/30) ->  | AB39: =(AB40/AB41)^(1/31) ->  | AI39: 36 | AJ39: 2010
A40: 2,008 | B40: Pesos | C40: $ 9.6787 | D40: $ 9.7242 | E40: $ 9.8340 | F40: $ 9.9155 | G40: $ 9.9710 | H40: $ 10.0345 | I40: $ 10.0712 | J40: $ 10.1188 | K40: $ 10.1832 | L40: $ 10.2139 | M40: $ 10.2487 | N40: $ 10.2834 | O40: =AJ2 -> 2,024 | Q40: =LOOKUP($AJ$2,$A$7:$A$92,C7:C92) -> 1,736.1475 | R40: =LOOKUP($AJ$2,$A$7:$A$92,D7:D92) -> 1,981.2935 | S40: 2,242.8242 | T40: 2,462.4282 | U40: 2,570.1934 | V40: 2,693.5627 | W40: 2,831.5937 | X40: 2,950.5206 | Y40: 3,068.3108 | Z40: 0.0000 | AA40: 0.0000 | AB40: 0.0000 | AI40: 37 | AJ40: 2011
A41: 2,009 | B41: Pesos | C41: $ 10.3379 | D41: $ 10.3825 | E41: $ 10.4489 | F41: $ 10.4837 | G41: $ 10.5184 | H41: $ 10.5630 | I41: $ 10.6284 | J41: $ 10.7167 | K41: $ 10.7960 | L41: $ 10.8823 | M41: $ 10.9725 | N41: $ 11.0746 | O41: =MOD(O40,4) -> 0 | Q41: =IF(O40=1975,12.22,LOOKUP($AJ$2-1,$A$7:$A$92,$N$7:$N$92)) -> 1,370.2703 | R41: =Q38 -> 1,736.1475 | S41: =R40 -> 1,981.2935 | T41: =S40 -> 2,242.8242 | U41: 2,462.4282 | V41: 2,570.1934 | W41: 2,693.5627 | X41: 2,831.5937 | Y41: 2,950.5206 | Z41: 3,068.3108 | AA41: 0.0000 | AB41: 0.0000 | AI41: 38 | AJ41: 2012
A42: 2,010 | B42: Pesos | C42: $ 11.1896 | D42: $ 11.3285 | E42: $ 11.4583 | F42: $ 11.5535 | G42: $ 11.6398 | H42: $ 11.7251 | I42: $ 11.8193 | J42: $ 11.9065 | K42: $ 11.9928 | L42: $ 12.1822 | M42: $ 12.1822 | N42: $ 12.2843 | AI42: 39 | AJ42: 2013
A43: 2,011 | B43: Pesos | C43: $ 12.3735 | D43: $ 12.4648 | E43: $ 12.5699 | F43: $ 12.6750 | G43: $ 12.7682 | H43: $ 12.8594 | I43: $ 12.9615 | J43: $ 13.0696 | K43: $ 13.1787 | L43: $ 13.2620 | M43: $ 13.3403 | N43: $ 13.4523 | AI43: 40 | AJ43: 2014
A44: 2,012 | B44: Pesos | C44: $ 13.5753 | D44: $ 13.6754 | E44: $ 13.8034 | F44: $ 13.9184 | G44: $ 14.0314 | H44: $ 14.1326 | I44: $ 14.2446 | J44: $ 14.3715 | K44: $ 14.4984 | L44: $ 14.6204 | M44: $ 14.7572 | N44: $ 14.9109 | AI44: 41 | AJ44: 2015
A45: 2,013 | B45: Pesos | C45: $ 15.0805 | D45: $ 15.2454 | E45: $ 15.4813 | F45: $ 15.7918 | G45: $ 16.0277 | H45: $ 16.3299 | I45: $ 16.7307 | J45: $ 17.0785 | K45: $ 17.4444 | L45: $ 17.8272 | M45: $ 18.2509 | N45: $ 18.6637 | AI45: 42 | AJ45: 2016
A46: 2,014 | B46: Pesos | C46: $ 19.5592 | D46: $ 20.4150 | E46: $ 21.1601 | F46: $ 21.8209 | G46: $ 22.3649 | H46: $ 22.8873 | I46: $ 23.3965 | J46: $ 23.9285 | K46: $ 24.4665 | L46: $ 24.9383 | M46: $ 25.3933 | N46: $ 25.7628 | AI46: 43 | AJ46: 2017
A47: 2,015 | B47: Pesos | C47: $ 26.2672 | D47: $ 26.6487 | E47: $ 27.0916 | F47: $ 27.7332 | G47: $ 28.3471 | H47: $ 28.7298 | I47: $ 29.3160 | J47: $ 29.8528 | K47: $ 30.3475 | L47: $ 30.8639 | M47: $ 31.4669 | N47: $ 32.6994 | AI47: 44 | AJ47: 2018
A48: 2,016 | B48: Pesos | C48: $ 34.0523 | D48: $ 35.4040 | E48: $ 36.5788 | F48: $ 38.9728 | G48: $ 40.9348 | H48: $ 42.2540 | I48: $ 43.1651 | J48: $ 42.8377 | K48: $ 43.4131 | L48: $ 44.6721 | M48: $ 45.5568 | N48: $ 46.1225 | AI48: 45 | AJ48: 2019
A49: 2,017 | B49: Pesos | C49: $ 46.9939 | D49: $ 48.0062 | E49: $ 49.3928 | F49: $ 50.4376 | G49: $ 51.3499 | H49: $ 52.1347 | I49: $ 53.0543 | J49: $ 53.9185 | K49: $ 54.7707 | L49: $ 55.6108 | M49: $ 56.3138 | N49: $ 58.1722 | AI49: 46 | AJ49: 2020
A50: 2,018 | B50: Pesos | C50: $ 59.1122 | D50: $ 60.6445 | E50: $ 61.9372 | F50: $ 63.8173 | G50: $ 65.3014 | H50: $ 67.6894 | I50: $ 69.5105 | J50: $ 72.0490 | K50: $ 76.3809 | L50: $ 80.4047 | M50: $ 82.6495 | N50: $ 84.7378 | AI50: 47 | AJ50: 2021
A51: 2,019 | B51: Pesos | C51: $ 87.8481 | D51: $ 90.8078 | E51: $ 94.4272 | F51: $ 97.9190 | G51: $ 101.0581 | H51: $ 103.7843 | I51: $ 106.0761 | J51: $ 109.6762 | K51: $ 115.1901 | L51: $ 118.3749 | M51: $ 122.8904 | N51: $ 127.4059 | AI51: 48 | AJ51: 2022
A52: 2,020 | B52: Pesos | C52: $ 130.5089 | D52: $ 132.9198 | E52: $ 136.5692 | F52: $ 139.2557 | G52: $ 140.5930 | H52: $ 142.5850 | I52: $ 144.8852 | J52: $ 148.3770 | K52: $ 151.7014 | L52: $ 155.4628 | M52: $ 160.2052 | N52: $ 166.2258 | AI52: 49 | AJ52: 2023
A53: 2,021 | B53: Pesos | C53: $ 172.6015 | D53: $ 183.0865 | E53: $ 184.4237 | F53: $ 190.6430 | G53: $ 198.7616 | H53: $ 205.1409 | I53: $ 211.1856 | J53: $ 217.3446 | K53: $ 224.7037 | L53: $ 232.9993 | M53: $ 238.8454 | N53: $ 248.0171 | AI53: 50 | AJ53: 2024
A54: 2,022 | B54: Pesos | C54: $ 258.0026 | D54: $ 268.5345 | E54: $ 284.3780 | F54: $ 299.4500 | G54: $ 315.9198 | H54: $ 332.0940 | I54: $ 357.5465 | J54: $ 381.8287 | K54: $ 401.1166 | L54: $ 429.0349 | M54: $ 453.8813 | N54: $ 479.9816 | AI54: 51 | AJ54: 2025
A55: 2,023 | B55: Pesos | C55: $ 512.8316 | D55: $ 543.5919 | E55: $ 582.2192 | F55: $ 627.4023 | G55: $ 674.7291 | H55: $ 722.9716 | I55: $ 775.9176 | J55: $ 859.7073 | K55: $ 962.4984 | L55: $ 1,052.7189 | M55: $ 1,177.9455 | N55: $ 1,370.2703 | AI55: 52 | AJ55: 2026
A56: 2,024 | B56: Pesos | C56: $ 1,736.1475 | D56: $ 1,981.2935 | E56: $ 2,242.8242 | F56: $ 2,462.4282 | G56: $ 2,570.1934 | H56: $ 2,693.5627 | I56: $ 2,831.5937 | J56: $ 2,950.5206 | K56: =N4*1474.29 -> $ 3,068.3108 | AI56: 53 | AJ56: 2027
A57: 2,025 | B57: Pesos | AI57: 54 | AJ57: 2028
A58: 2,026 | B58: Pesos | AI58: 55 | AJ58: 2029
A59: 2,027 | B59: Pesos | AI59: 56 | AJ59: 2030
A60: 2,028 | B60: Pesos | AI60: 57 | AJ60: 2031
A61: 2,029 | B61: Pesos | AI61: 58 | AJ61: 2032
A62: 2,030 | B62: Pesos | AI62: 59 | AJ62: 2033
A63: 2,031 | B63: Pesos | AI63: 60 | AJ63: 2034
A64: 2,032 | B64: Pesos | AI64: 61 | AJ64: 2035
A65: 2,033 | B65: Pesos | AI65: 62 | AJ65: 2036
A66: 2,034 | B66: Pesos | AI66: 63 | AJ66: 2037
A67: 2,035 | B67: Pesos | AI67: 64 | AJ67: 2038
A68: 2,036 | B68: Pesos | AI68: 65 | AJ68: 2039
A69: 2,037 | B69: Pesos | AI69: 66 | AJ69: 2040
A70: 2,038 | B70: Pesos | AI70: 67 | AJ70: 2041
A71: 2,039 | B71: Pesos | AI71: 68 | AJ71: 2042
A72: 2,040 | B72: Pesos | AI72: 69 | AJ72: 2043
A73: 2,041 | B73: Pesos | AI73: 70 | AJ73: 2044
A74: 2,042 | B74: Pesos | AI74: 71 | AJ74: 2045
A75: 2,043 | B75: Pesos | AI75: 72 | AJ75: 2046
A76: 2,044 | B76: Pesos | AI76: 73 | AJ76: 2047
A77: 2,045 | B77: Pesos | AI77: 74 | AJ77: 2048
A78: 2,046 | B78: Pesos | AI78: 75 | AJ78: 2049
A79: 2,047 | B79: Pesos | AI79: 76 | AJ79: 2050
A80: 2,048 | B80: Pesos | AI80: 77 | AJ80: 2051
A81: 2,049 | B81: Pesos | AI81: 78 | AJ81: 2052
A82: 2,050 | B82: Pesos | AI82: 79 | AJ82: 2053
A83: 2,051 | B83: Pesos | AI83: 80 | AJ83: 2054
A84: 2,052 | B84: Pesos | AI84: 81 | AJ84: 2055
A85: 2,053 | B85: Pesos | AI85: 82 | AJ85: 2056
A86: 2,054 | B86: Pesos | AI86: 83 | AJ86: 2057
A87: 2,055 | B87: Pesos | AI87: 84 | AJ87: 2058
A88: 2,056 | B88: Pesos | AI88: 85 | AJ88: 2059
A89: 2,057 | B89: Pesos | AI89: 86 | AJ89: 2060
A90: 2,058 | B90: Pesos
A91: 2,059 | B91: Pesos
A92: 2,060 | B92: Pesos
